Workbook

Sheet Menu
D3: ELECTRICITY
D4: SubMenu | J4: =[1]Menu!$I$4 -> SA RANDS
J5: =[1]Menu!$I$5 -> 2011

Sheet Summary Instructions
C3: ELECTRICITY - SUMMARY INSTRUCTIONS
D5: Capture anticipated and current Consumption Level Data for Tariff Consumer Groups on this screen.
C8: Any cell with this background colour is a DATA INPUT cell.
C10: Data Required
C11: Consumer Group Name - | D11: EG: Industrial, Domestic
C12: Consumption Types - | D12: EG: Domestic Consumption Type 1
D13: Domestic Consumption Type 2
C14: Consumption Levels - | D14: EG: Consumption 7KL to 15KL
D15: Consumption 16KL to 30KL | F15: Municipal specific DATA INPUT
C16: Units of Demand - | D16: Estimated Demand for the upcoming year for each Consumption Level.
C17: Units of Demand (Historical) | D17: Actual Demand for the last year.
C18: Current Actual Tariff - | D18: Tariff charged in the last financial year for each consumption level.
D21: Capture the anticipated and current Number of Users for Tariff Consumer Groups on this workscreen.
C23: Any cell with this background colour is a DATA INPUT cell.
C25: Data Required
C26: Consumer Group Name - | D26: EG: Industrial, Domestic
C27: Consumption Types - | D27: EG: Availablility Fee for Vacant Stands
D28: Basic Fees
C29: No. of Stands - | D29: Anticipated number of Stands for the upcoming year. | F29: Municipal specific DATA INPUT
C30: No. of Stands - | D30: Actual number of Stands for the last year.
C31: Current Actual Tariff - | D31: Tariff charged for the last financial year for each consumption type
D34: Capture the costs for the budget vote on this screen as well as the % allocated to Variable Costs. AT THE BOTTOM OF THE PAGE: the Revenue (from previous years units of demand * tariff) is proportioned and allocated per consumer group as a % of the total revenue. The variable costs and subsidy is also proportioned according to this %.
C38: Any cell with this background colour is a DATA INPUT cell.
C40: Data Required
C41: Costs | D41: EG: Bulk Purchases:
D42: Employee Related Costs:
C43: Cost Detail | D43: Bulk Purchases
D44: Basic Salaries | F44: Municipal specific DATA INPUT
D45: Social Contributions
C46: Share of Varible Costs | D46: Enter the % of the cost assigned to Variable Costs.
C47: A summary of Fixed and Variable costs is displayed at the top of this screen.
C48: REVENUE (Bottom Tables) | D48: Type in the Revenue per Consumer Group, this is used to obtain a percentage per group from the Total Revenue. The Variable Cost and Subsidy Amount will then get proportioned out per consumer group. These calculations are used to work out the Tariffs.
D50: The Primary baseline is calculated and then displayed on this screen.
C53: Tariff per Consumer Group | D53: Total Variable Costs per Consumer Group
D54: Total Units of Demand per Consumer Group
C57: Fixed Tariff for Electricity Supply | D57: Total Fixed Facility Costs
D58: Total Number of Users
D60: The Primary Baseline is adjusted here to remove Free Basic Services from the Tariff calculation.
D64: Input data for strategic decisions on this screen.
D65: Input data can be in the form of a number or a % change.
C68: Any cell with this background colour is an optional DATA INPUT cell.
D72: The revised tariff takes into account input from Strategic Decisions and revises the Tariff accordingly.
D77: This screen compares the Current Actual Tariff and Revenue to the Revised Tariff and Revenue, for either Fixed or Variable Tariff. To see the Summary of both Tariff Comparisons, click this button
C80: % CHANGE | D80: Use the %Change column to increase or decrease the Revised Tariff. As you enter the % change the Tariff and Rrevenue will change to reflect your input.
C82: Current Actual - Revised | D82: This column displays the difference betweenTariffs together with a colour indicator.
C83: TARIFF
C85: PROFIT\LOSS | D85: This column displays the difference between Revenues together with a colour indicator.
C86: REVENUE

Sheet Data Capture Demand
C3: ELECTRICITY - DATA CAPTURE: DEMAND PER YEAR
C5: FUTURE DEMAND | G5: HISTORICAL DEMAND
C7: ="Financial Year: "&Menu!J5&"\"&Menu!J5+1 -> Financial Year: 2011\2012 | G7: =Menu!J5-1&"\"&Menu!J5 -> 2010\2011
C8: CONSUMER | D8: CONSUMPTION LEVEL | E8: UNITS OF DEMAND | G8: UNITS OF DEMAND | H8: CURRENT ACTUAL TARIFF PER UNIT
B9: 1 | C9: DOMESTIC - LOW INCOME (KwH)
C10: Domestic Low Income Pre-paid | E10: 2750000 | G10: 2500000 | H10: =H15 -> 0.78 | N10: =G10*H10 -> 1950000
C11: Domestic Low Income Metered | E11: 0 | G11: 0 | H11: =H24 -> 0.72 | N11: =G11*H11 -> 0
C12: Consumption Total | E12: =SUM(E6:E11) -> 2750000 | G12: =SUM(G10:G11) -> 2500000 | N12: =SUM(N10:N11) -> 1950000
B14: 2 | C14: DOMESTIC - PRE-PAID (KwH)
C15: Domestic Pre-Paid Type 1 | E15: 1650000 | G15: 1500000 | H15: 0.78 | N15: =G15*H15 -> 1170000
C16: Domestic Pre-Paid Type 2 | E16: 1500000 | G16: 1500000 | H16: 0.85 | N16: 1275000
C17: Domestic Pre-Paid Type 3 | E17: 0 | G17: 0 | H17: 0 | N17: 0
C18: Domestic Pre-Paid Type 4 | E18: 0 | G18: 0 | H18: 0 | N18: 0
C19: Domestic Pre-Paid Type 5 | E19: 0 | G19: 0 | H19: 0 | N19: 0
C20: Domestic Pre-Paid Type 6 | E20: 0 | G20: 0 | H20: 0 | N20: 0
C21: Consumption Total | E21: =SUM(E15:E20) -> 3150000 | G21: =SUM(G15:G20) -> 3000000 | N21: =SUM(N15:N20) -> 2445000
B23: 3 | C23: DOMESTIC - METERED SINGLE PHASE (KwH)
C24: Domestic Metered Single Phase Type 1 | E24: 1400000 | G24: 1500000 | H24: 0.72 | N24: =G24*H24 -> 1080000
C25: Domestic Metered Single Phase Type 2 | E25: 1350000 | G25: 1500000 | H25: 0.9 | N25: 1350000
C26: Domestic Metered Single Phase Type 3 | E26: 0 | G26: 0 | H26: 0 | N26: 0
C27: Domestic Metered Single Phase Type 4 | E27: 0 | G27: 0 | H27: 0 | N27: 0
C28: Domestic Metered Single Phase Type 5 | E28: 0 | G28: 0 | H28: 0 | N28: 0
C29: Domestic Metered Single Phase Type 6 | E29: 0 | G29: 0 | H29: 0 | N29: 0
C30: Consumption Total | E30: =SUM(E24:E29) -> 2750000 | G30: =SUM(G24:G29) -> 3000000 | N30: =SUM(N24:N29) -> 2430000
B32: 4 | C32: DOMESTIC - METERED THREE PHASE (KwH)
C33: Domestic Metered Three Phase Type 1 | E33: 3300000 | G33: 3000000 | H33: 0.75 | N33: =G33*H33 -> 2250000
C34: Domestic Metered Three Phase Type 2 | E34: 5250000 | G34: 5000000 | H34: 0.9 | N34: 4500000
C35: Domestic Metered Three Phase Type 3 | E35: 0 | G35: 0 | H35: 0 | N35: 0
C36: Domestic Metered Three Phase Type 4 | E36: 0 | G36: 0 | H36: 0 | N36: 0
C37: Domestic Metered Three Phase Type 5 | E37: 0 | G37: 0 | H37: 0 | N37: 0
C38: Domestic Metered Three Phase Type 6 | E38: 0 | G38: 0 | H38: 0 | N38: 0
C39: Consumption Total | E39: =SUM(E33:E38) -> 8550000 | G39: =SUM(G33:G38) -> 8000000 | N39: =SUM(N33:N38) -> 6750000
B41: 5 | C41: INDUSTRIAL - METERED (KwH)
C42: Industrial Metered (KwH) Type 1 | E42: 0 | G42: 0 | H42: 0 | N42: =G42*H42 -> 0
C43: Industrial Metered (KwH) Type 2 | E43: 0 | G43: 0 | H43: 0 | N43: 0
C44: Industrial Metered (KwH) Type 3 | E44: 0 | G44: 0 | H44: 0 | N44: 0
C45: Industrial Metered (KwH) Type 4 | E45: 0 | G45: 0 | H45: 0 | N45: 0
C46: Industrial Metered (KwH) Type 5 | E46: 0 | G46: 0 | H46: 0 | N46: 0
C47: Industrial Metered (KwH) Type 6 | E47: 0 | G47: 0 | H47: 0 | N47: 0
C48: Consumption Total | E48: =SUM(E42:E47) -> 0 | G48: =SUM(G42:G47) -> 0 | N48: =SUM(N42:N47) -> 0
B50: 6 | C50: INDUSTRIAL - METERED (KvA)
C51: Industrial Metered (KvA) Type 1 | E51: 100000 | G51: 100000 | H51: 6 | N51: =G51*H51 -> 600000
C52: Industrial Metered (KvA) Type 2 | E52: 0 | G52: 0 | H52: 0 | N52: 0
C53: Industrial Metered (KvA) Type 3 | E53: 0 | G53: 0 | H53: 0 | N53: 0
C54: Industrial Metered (KvA) Type 4 | E54: 0 | G54: 0 | H54: 0 | N54: 0
C55: Industrial Metered (KvA) Type 5 | E55: 0 | G55: 0 | H55: 0 | N55: 0
C56: Industrial Metered (KvA) Type 6 | E56: 0 | G56: 0 | H56: 0 | N56: 0
C57: Consumption Total | E57: =SUM(E51:E56) -> 100000 | G57: =SUM(G51:G56) -> 100000 | N57: =SUM(N51:N56) -> 600000
B59: 7 | C59: COMMERCIAL - METERED (KwH)
C60: Commercial Metered (KwH) Type 1 | E60: 1650000 | G60: 1500000 | H60: 0.75 | N60: =G60*H60 -> 1125000
C61: Commercial Metered (KwH) Type 2 | E61: 2100000 | G61: 2000000 | H61: 0.92 | N61: 1840000
C62: Commercial Metered (KwH) Type 3 | E62: 0 | G62: 0 | H62: 0 | N62: 0
C63: Commercial Metered (KwH) Type 4 | E63: 0 | G63: 0 | H63: 0 | N63: 0
C64: Commercial Metered (KwH) Type 5 | E64: 0 | G64: 0 | H64: 0 | N64: 0
C65: Commercial Metered (KwH) Type 6 | E65: 0 | G65: 0 | H65: 0 | N65: 0
C66: Consumption Total | E66: =SUM(E60:E65) -> 3750000 | G66: =SUM(G60:G65) -> 3500000 | N66: =SUM(N60:N65) -> 2965000
B68: 8 | C68: COMMERCIAL - METERED (KvA)
C69: Commercial Metered (KvA) Type 1 | E69: 0 | G69: 0 | H69: 0 | N69: =G69*H69 -> 0
C70: Commercial Metered (KvA) Type 2 | E70: 0 | G70: 0 | H70: 0 | N70: 0
C71: Commercial Metered (KvA) Type 3 | E71: 0 | G71: 0 | H71: 0 | N71: 0
C72: Commercial Metered (KvA) Type 4 | E72: 0 | G72: 0 | H72: 0 | N72: 0
C73: Commercial Metered (KvA) Type 5 | E73: 0 | G73: 0 | H73: 0 | N73: 0
C74: Commercial Metered (KvA) Type 6 | E74: 0 | G74: 0 | H74: 0 | N74: 0
C75: Consumption Total | E75: =SUM(E69:E74) -> 0 | G75: =SUM(G69:G74) -> 0 | N75: =SUM(N69:N74) -> 0
B77: 9 | C77: INSTITUTIONAL - METERED (KwH)
C78: Institutional Metered (KwH) Type 1 | E78: 380000 | G78: 400000 | H78: 0.6 | N78: =G78*H78 -> 240000
C79: Institutional Metered (KwH) Type 2 | E79: 420000 | G79: 400000 | H79: 0.6 | N79: 240000
C80: Institutional Metered (KwH) Type 3 | E80: 0 | G80: 0 | H80: 0 | N80: 0
C81: Institutional Metered (KwH) Type 4 | E81: 0 | G81: 0 | H81: 0 | N81: 0
C82: Institutional Metered (KwH) Type 5 | E82: 0 | G82: 0 | H82: 0 | N82: 0
C83: Institutional Metered (KwH) Type 6 | E83: 0 | G83: 0 | H83: 0 | N83: 0
C84: Consumption Total | E84: =SUM(E78:E83) -> 800000 | G84: =SUM(G78:G83) -> 800000 | N84: =SUM(N78:N83) -> 480000
B86: 10 | C86: TIME OF USE
C87: Time of Use Type 1 | E87: 0 | G87: 0 | H87: 0 | N87: =G87*H87 -> 0
C88: Time of Use Type 2 | E88: 0 | G88: 0 | H88: 0 | N88: 0
C89: Time of Use Type 3 | E89: 0 | G89: 0 | H89: 0 | N89: 0
C90: Time of Use Type 4 | E90: 0 | G90: 0 | H90: 0 | N90: 0
C91: Time of Use Type 5 | E91: 0 | G91: 0 | H91: 0 | N91: 0
C92: Time of Use Type 6 | E92: 0 | G92: 0 | H92: 0 | N92: 0
C93: Consumption Total | E93: =SUM(E87:E92) -> 0 | G93: =SUM(G87:G92) -> 0 | N93: =SUM(N87:N92) -> 0
B95: 11 | C95: TYPE V
C96: Type V Type 1 | E96: 0 | G96: 0 | H96: 0 | N96: =G96*H96 -> 0
C97: Type V Type 2 | E97: 0 | G97: 0 | H97: 0 | N97: 0
C98: Type V Type 3 | E98: 0 | G98: 0 | H98: 0 | N98: 0
C99: Type V Type 4 | E99: 0 | G99: 0 | H99: 0 | N99: 0
C100: Type V Type 5 | E100: 0 | G100: 0 | H100: 0 | N100: 0
C101: Type V Type 6 | E101: 0 | G101: 0 | H101: 0 | N101: 0
C102: Consumption Total | E102: =SUM(E96:E101) -> 0 | G102: =SUM(G96:G101) -> 0 | N102: =SUM(N96:N101) -> 0
B104: 12 | C104: TYPE X
C105: Type X Type 1 | E105: 0 | G105: 0 | H105: 0 | N105: =G105*H105 -> 0
C106: Type X Type 2 | E106: 0 | G106: 0 | H106: 0 | N106: 0
C107: Type X Type 3 | E107: 0 | G107: 0 | H107: 0 | N107: 0
C108: Type X Type 4 | E108: 0 | G108: 0 | H108: 0 | N108: 0
C109: Type X Type 5 | E109: 0 | G109: 0 | H109: 0 | N109: 0
C110: Type X Type 6 | E110: 0 | G110: 0 | H110: 0 | N110: 0
C111: Consumption Total | E111: =SUM(E105:E110) -> 0 | G111: =SUM(G105:G110) -> 0 | N111: =SUM(N105:N110) -> 0
B113: 13 | C113: TYPE Y
C114: Type Y Type 1 | E114: 0 | G114: 0 | H114: 0 | N114: =G114*H114 -> 0
C115: Type Y Type 2 | E115: 0 | G115: 0 | H115: 0 | N115: 0
C116: Type Y Type 3 | E116: 0 | G116: 0 | H116: 0 | N116: 0
C117: Type Y Type 4 | E117: 0 | G117: 0 | H117: 0 | N117: 0
C118: Type Y Type 5 | E118: 0 | G118: 0 | H118: 0 | N118: 0
C119: Type Y Type 6 | E119: 0 | G119: 0 | H119: 0 | N119: 0
C120: Consumption Total | E120: =SUM(E114:E119) -> 0 | G120: =SUM(G114:G119) -> 0 | N120: =SUM(N114:N119) -> 0
B122: 14 | C122: TYPE Z
C123: Type Z Type 1 | E123: 0 | G123: 0 | H123: 0 | N123: =G123*H123 -> 0
C124: Type Z Type 2 | E124: 0 | G124: 0 | H124: 0 | N124: 0
C125: Type Z Type 3 | E125: 0 | G125: 0 | H125: 0 | N125: 0
C126: Type Z Type 4 | E126: 0 | G126: 0 | H126: 0 | N126: 0
C127: Type Z Type 5 | E127: 0 | G127: 0 | H127: 0 | N127: 0
C128: Type Z Type 6 | E128: 0 | G128: 0 | H128: 0 | N128: 0
C129: Consumption Total | E129: =SUM(E123:E128) -> 0 | G129: =SUM(G123:G128) -> 0 | N129: =SUM(N123:N128) -> 0
C131: TOTAL ELECTRICITY DEMAND | E131: =SUM(E12+E21+E30+E39+E48+E57+E66+E75+E84+E93+E102+E111+E120+E129) -> 21850000 | G131: =SUM(G12+G21+G30+G39+G48+G57+G66+G75+G84+G93+G102+G111+G120+G129) -> 20900000

Sheet Data Capture Users
C3: ELECTRICITY - DATA CAPTURE: USERS PER YEAR
C5: FUTURE NUMBER OF STANDS | F5: HISTORICAL NUMBER OF STANDS
C7: ="Financial Year: "&Menu!J5&"\"&Menu!J5+1 -> Financial Year: 2011\2012 | F7: =Menu!J5-1&"\"&Menu!J5 -> 2010\2011
C8: CONSUMER | D8: NO OF STANDS | F8: NO OF STANDS | G8: CURRENT ACTUAL TARIFF PER STAND
C9: DOMESTIC - LOW INCOME (KwH)
C10: Domestic Low Income Pre-paid | D10: 2200 | F10: 2000 | G10: =G16 -> 0 | L10: =F10*G10 -> 0
C11: Domestic Low Income Metered | D11: 0 | F11: 0 | G11: =G22 -> 600 | L11: =F11*G11 -> 0
C12: Stand Total | D12: =SUM(D10:D11) -> 2200 | F12: =SUM(F10:F11) -> 2000 | L12: =SUM(L10:L11) -> 0
C14: DOMESTIC - PRE-PAID (KwH)
C15: Availablility Fees for Vacant Stands | D15: 0 | F15: 0 | G15: 0 | L15: =F15*G15 -> 0
C16: Basic Fees for Occupied Stands | D16: 0 | F16: 0 | G16: 0 | L16: =F16*G16 -> 0
D17: 0 | F17: 0 | G17: 0 | L17: 0
C18: Stand Total | D18: =SUM(D15:D17) -> 0 | F18: =SUM(F15:F17) -> 0 | L18: =SUM(L15:L17) -> 0
C20: DOMESTIC - METERED SINGLE & THREE PHASE (KwH)
C21: Availablility Fees for Vacant Stands | D21: 900 | F21: 1000 | G21: 600
C22: Basic Fees for Occupied Stands | D22: 10100 | F22: 10000 | G22: 600
D23: 0 | F23: 0 | G23: 0
C24: Stand Total | D24: =SUM(D21:D23) -> 11000 | F24: =SUM(F21:F23) -> 11000
C26: INDUSTRIAL
C27: Availablility Fees for Vacant Stands | D27: 0 | F27: 0 | G27: 0
C28: Basic Fees for Occupied Stands | D28: 0 | F28: 0 | G28: 0
D29: 0 | F29: 0 | G29: 0
C30: Stand Total | D30: =SUM(D27:D29) -> 0 | F30: =SUM(F27:F29) -> 0
C32: COMMERCIAL
C33: Availablility Fees for Vacant Stands | D33: 0 | F33: 0 | G33: 0
C34: Basic Fees for Occupied Stands | D34: 0 | F34: 0 | G34: 0
D35: 0 | F35: 0 | G35: 0
C36: Stand Total | D36: =SUM(D33:D35) -> 0 | F36: =SUM(F33:F35) -> 0
C38: INSTITUTIONAL
C39: Availablility Fees for Vacant Stands | D39: 0 | F39: 0 | G39: 0
C40: Basic Fees for Occupied Stands | D40: 0 | F40: 0 | G40: 0
D41: 0 | F41: 0 | G41: 0
C42: Stand Total | D42: =SUM(D39:D41) -> 0 | F42: =SUM(F39:F41) -> 0
C44: TOTAL NUMBER OF STANDS | D44: =SUM(D12+D18+D24+D30+D36+D42) -> 13200 | F44: =SUM(F12+F18+F24+F30+F36+F42) -> 13000

Sheet Data Capture Costs
BA1: 0
BA2: 0.01
C3: =Menu!D3&" - DATA CAPTURE: COSTS BY BUDGET VOTE" -> ELECTRICITY - DATA CAPTURE: COSTS BY BUDGET VOTE | BA3: 0.02
BA4: 0.03
C5: SUMMARY | D5: =Menu!J4 -> SA RANDS | BA5: 0.04
C6: TOTAL VARIABLE COSTS | D6: =SUMPRODUCT($E$12:$E$33,$F$12:$F$33) -> 20945000 | BA6: 0.05
C7: TOTAL FIXED FACILITY COSTS | D7: =SUMPRODUCT($E$12:$E$33,$G$12:$G$33) -> 8105000 | BA7: 0.06
C8: TOTAL RING FENCED COSTS | D8: =SUM(D6:D7) -> 29050000 | BA8: 0.07
BA9: 0.08
C10: COSTS BY BUDGET VOTE | D10: =Menu!J4 -> SA RANDS | F10: Share of Variable Costs | G10: Share of Fixed Costs | BA10: 0.09
C11: Costs | D11: Detail | E11: ="Year"&" "&Menu!$J$5&"\"&Menu!$J$5+1 -> Year 2011\2012 | BA11: 0.1
C12: Bulk Purchases: | D12: Bulk Purchases | E12: 13000000 | F12: 0.9 | G12: =IF(F12="","",1-F12) -> 0.1 | BA12: 0.11
C13: Employee Related Costs: | D13: Basic Salaries | E13: 6000000 | F13: 0.8 | G13: =IF(F13="","",1-F13) -> 0.2 | BA13: 0.12
C14: Employee Related Costs: | D14: Social Contributions | E14: 2000000 | F14: 0.9 | G14: =IF(F14="","",1-F14) -> 0.1 | BA14: 0.13
C15: Repairs and Maintenance | D15: Repairs and Maintenance | E15: 2000000 | F15: 0.2 | G15: 0.8 | BA15: 0.14
C16: Other Costs: | D16: General Costs | E16: 350000 | F16: 0.5 | G16: 0.5 | BA16: 0.15
C17: Other Costs: | D17: Collection Commission | E17: 0 | F17: 1 | G17: 0 | BA17: 0.16
C18: Other Cost: | D18: Contracted Services | E18: 0 | F18: 1 | G18: 0 | BA18: 0.17
C19: Other Costs: | D19: Contributions to Provisions | E19: 0 | F19: 1 | G19: 0 | BA19: 0.18
C20: Other Costs: | D20: Debt Impairment | E20: 0 | F20: 1 | G20: 0 | BA20: 0.19
C21: Other Costs: | D21: Motor Vehicle Costs | E21: 5000000 | F21: 0.4 | G21: 0.6 | BA21: 0.2
C22: Depreciation: | E22: 0 | F22: 0 | G22: 1 | BA22: 0.21
C23: External Interest: | E23: 0 | F23: 0 | G23: 1 | BA23: 0.22
C24: Reserves\Provisions for Capital Improvements: | E24: 0 | F24: 0 | G24: 1 | BA24: 0.23
C25: Other Costs: | E25: 0 | F25: 1 | G25: 0 | BA25: 0.24
C26: Other Costs: | E26: 0 | F26: 1 | G26: 0 | BA26: 0.25
C27: Other Costs: | E27: 0 | F27: 1 | G27: 0 | BA27: 0.26
C28: Other Costs: | E28: 0 | F28: 1 | G28: 0 | BA28: 0.27
C29: Other Costs: | E29: 0 | F29: 1 | G29: 0 | BA29: 0.28
C30: Other Costs: | E30: 0 | F30: 1 | G30: 0 | BA30: 0.29
C31: Overhead Costs Re-Allocated (+) | E31: 700000 | F31: 0.1 | G31: 0.9 | BA31: 0.3
C32: Overhead Costs Re-Allocated (-) | D32: Less | E32: 0 | F32: 1 | G32: 0 | BA32: 0.31
C33: Less Sundry Income | D33: Less Sundry Income Generated from Indirect Services | E33: 0 | F33: 1 | G33: 0 | BA33: 0.32
C34: TOTAL COSTS BY BUDGET VOTE | E34: =SUM(E12:E31)-E32-E33 -> 29050000 | BA34: 0.33
BA35: 0.34
C36: TOTAL RING FENCED COSTS | E36: =E34 -> 29050000 | BA36: 0.35
BA39: 0.36
C40: COST APPORTIONMENT FOR MULTIPLE PRIMARY BASELINES | L40: Subsidy % | BA40: 0.38
C41: PRIOR YEAR - REVENUE PER CONSUMER GROUP | E41: REVENUE | I41: % of Revenue per Consumer Group | J41: Variable Cost allocated by Revenue | K41: Subsidy Amt | L41: =$D$6*'Strategic Decisions'!$J$13% -> 0 | M41: Revenue plus Subsidy % | BA41: 0.39
B42: 1 | C42: ='Data Capture Demand'!C9 -> DOMESTIC - LOW INCOME (KwH) | E42: ='Data Capture Demand'!N12 -> 1950000 | I42: =IF(E42=0,0,E42/$E$56) -> 0.1106696935 | J42: =$D$6*(I42) -> 2317976.731 | K42: =I42*'Strategic Decisions'!$J$11 -> 0 | L42: =I42*$L$41 -> 0 | M42: =J42+K42+L42 -> 2317976.731 | BA42: 0.4
B43: 2 | C43: ='Data Capture Demand'!C14 -> DOMESTIC - PRE-PAID (KwH) | E43: ='Data Capture Demand'!N21 -> 2445000 | I43: =IF(E43=0,0,E43/$E$56) -> 0.1387627696 | J43: =$D$6*(I43) -> 2906386.209 | K43: =I43*'Strategic Decisions'!$J$11 -> 0 | L43: =I43*$L$41 -> 0 | M43: 2906386.209 | BA43: 0.41
B44: 3 | C44: ='Data Capture Demand'!C23 -> DOMESTIC - METERED SINGLE PHASE (KwH) | E44: ='Data Capture Demand'!N30 -> 2430000 | I44: 0.1379114642 | J44: 2888555.619 | K44: =I44*'Strategic Decisions'!$J$11 -> 0 | L44: 0 | M44: 2888555.619 | BA44: 0.42
B45: 4 | C45: ='Data Capture Demand'!C32 -> DOMESTIC - METERED THREE PHASE (KwH) | E45: ='Data Capture Demand'!N39 -> 6750000 | I45: 0.3830874007 | J45: 8023765.607 | K45: =I45*'Strategic Decisions'!$J$11 -> 0 | L45: 0 | M45: 8023765.607 | BA45: 0.43
B46: 5 | C46: ='Data Capture Demand'!C41 -> INDUSTRIAL - METERED (KwH) | E46: ='Data Capture Demand'!N48 -> 0 | I46: 0 | J46: 0 | K46: =I46*'Strategic Decisions'!$J$11 -> 0 | L46: 0 | M46: 0 | BA46: 0.44
B47: 6 | C47: ='Data Capture Demand'!C50 -> INDUSTRIAL - METERED (KvA) | E47: ='Data Capture Demand'!N57 -> 600000 | I47: 0.03405221339 | J47: 713223.6095 | K47: =I47*'Strategic Decisions'!$J$11 -> 0 | L47: 0 | M47: 713223.6095 | BA47: 0.45
B48: 7 | C48: ='Data Capture Demand'!C59 -> COMMERCIAL - METERED (KwH) | E48: ='Data Capture Demand'!N66 -> 2965000 | I48: 0.1682746879 | J48: 3524513.337 | K48: =I48*'Strategic Decisions'!$J$11 -> 0 | L48: 0 | M48: 3524513.337 | BA48: 0.46
B49: 8 | C49: ='Data Capture Demand'!C68 -> COMMERCIAL - METERED (KvA) | E49: ='Data Capture Demand'!N75 -> 0 | I49: 0 | J49: 0 | K49: =I49*'Strategic Decisions'!$J$11 -> 0 | L49: 0 | M49: 0 | BA49: 0.47
B50: 9 | C50: ='Data Capture Demand'!C77 -> INSTITUTIONAL - METERED (KwH) | E50: ='Data Capture Demand'!N84 -> 480000 | I50: 0.02724177072 | J50: 570578.8876 | K50: =I50*'Strategic Decisions'!$J$11 -> 0 | L50: 0 | M50: 570578.8876 | BA50: 0.48
B51: 10 | C51: ='Data Capture Demand'!C86 -> TIME OF USE | E51: ='Data Capture Demand'!N93 -> 0 | I51: 0 | J51: 0 | K51: =I51*'Strategic Decisions'!$J$11 -> 0 | L51: 0 | M51: 0 | BA51: 0.5
B52: 11 | C52: ='Data Capture Demand'!C95 -> TYPE V | E52: ='Data Capture Demand'!N102 -> 0 | I52: 0 | J52: 0 | K52: =I52*'Strategic Decisions'!$J$11 -> 0 | L52: 0 | M52: 0 | BA52: 0.51
B53: 12 | C53: ='Data Capture Demand'!C104 -> TYPE X | E53: ='Data Capture Demand'!N111 -> 0 | I53: 0 | J53: 0 | K53: =I53*'Strategic Decisions'!$J$11 -> 0 | L53: 0 | M53: 0 | BA53: 0.52
B54: 13 | C54: ='Data Capture Demand'!C113 -> TYPE Y | E54: ='Data Capture Demand'!N120 -> 0 | I54: 0 | J54: 0 | K54: =I54*'Strategic Decisions'!$J$11 -> 0 | L54: 0 | M54: 0 | BA54: 0.53
B55: 14 | C55: ='Data Capture Demand'!C122 -> TYPE Z | E55: ='Data Capture Demand'!N129 -> 0 | I55: 0 | J55: 0 | K55: =I55*'Strategic Decisions'!$J$11 -> 0 | L55: =I55*$L$41 -> 0 | M55: 0 | BA55: 0.54
C56: TOTAL REVENUE | E56: =SUM(E42:E55) -> 17620000 | I56: =SUM(I42:I55) -> 1 | J56: =SUM(J42:J55) -> 20945000 | K56: =SUM(K42:K55) -> 0 | L56: =SUM(L42:L55) -> 0 | M56: =SUM(M42:M55) -> 20945000 | BA56: 0.55
BA57: 0.56
BA58: 0.57
L59: Subsidy % | BA59: 0.58
C60: PRIOR YEAR - REVENUE PER CONSUMER GROUP (EXCLUDING DOMESTIC LOW INCOME) | E60: REVENUE | I60: % of Revenue per Consumer Group | J60: Variable Cost allocated by Revenue | K60: Subsidy Amt | L60: =$D$6*'Strategic Decisions'!$J$13% -> 0 | M60: Cost plus Subsidy | BA60: 0.59
B61: 1 | C61: =C42 -> DOMESTIC - LOW INCOME (KwH) | E61: 0 | I61: =IF(E61=0,0,E61/$E$75) -> 0 | J61: =$D$6*(I61) -> 0 | K61: =I61*'Strategic Decisions'!$J$11 -> 0 | L61: =I61*$L$60 -> 0 | M61: =J61+K61+L61 -> 0 | BA61: 0.6
B62: 2 | C62: =C43 -> DOMESTIC - PRE-PAID (KwH) | E62: =E43 -> 2445000 | I62: =IF(E62=0,0,E62/$E$75) -> 0.1560306318 | J62: =$D$6*(I62) -> 3268061.583 | K62: =I62*'Strategic Decisions'!$J$11 -> 0 | L62: =I62*$L$60 -> 0 | M62: 3268061.583 | BA62: 0.61
B63: 3 | C63: DOMESTIC - METERED SINGLE PHASE (KwH) | E63: 2430000 | I63: 0.1550733886 | J63: 3248012.125 | K63: =I63*'Strategic Decisions'!$J$11 -> 0 | L63: 0 | M63: 3248012.125 | BA63: 0.62
B64: 4 | C64: DOMESTIC - METERED THREE PHASE (KwH) | E64: 6750000 | I64: 0.4307594129 | J64: 9022255.903 | K64: =I64*'Strategic Decisions'!$J$11 -> 0 | L64: 0 | M64: 9022255.903 | BA64: 0.63
B65: 5 | C65: INDUSTRIAL - METERED (KwH) | E65: 0 | I65: 0 | J65: 0 | K65: =I65*'Strategic Decisions'!$J$11 -> 0 | L65: 0 | M65: 0 | BA65: 0.64
B66: 6 | C66: INDUSTRIAL - METERED (KvA) | E66: 600000 | I66: 0.03828972559 | J66: 801978.3025 | K66: =I66*'Strategic Decisions'!$J$11 -> 0 | L66: 0 | M66: 801978.3025 | BA66: 0.65
B67: 7 | C67: COMMERCIAL - METERED (KwH) | E67: 2965000 | I67: 0.1892150606 | J67: 3963109.445 | K67: =I67*'Strategic Decisions'!$J$11 -> 0 | L67: 0 | M67: 3963109.445 | BA67: 0.66
B68: 8 | C68: COMMERCIAL - METERED (KvA) | E68: 0 | I68: 0 | J68: 0 | K68: =I68*'Strategic Decisions'!$J$11 -> 0 | L68: 0 | M68: 0 | BA68: 0.67
B69: 9 | C69: INSTITUTIONAL - METERED (KwH) | E69: 480000 | I69: 0.03063178047 | J69: 641582.642 | K69: =I69*'Strategic Decisions'!$J$11 -> 0 | L69: 0 | M69: 641582.642 | BA69: 0.68
B70: 10 | C70: TIME OF USE | E70: 0 | I70: 0 | J70: 0 | K70: =I70*'Strategic Decisions'!$J$11 -> 0 | L70: 0 | M70: 0 | BA70: 0.69
B71: 11 | C71: TYPE V | E71: 0 | I71: 0 | J71: 0 | K71: =I71*'Strategic Decisions'!$J$11 -> 0 | L71: 0 | M71: 0 | BA71: 0.71
B72: 12 | C72: TYPE X | E72: 0 | I72: 0 | J72: 0 | K72: =I72*'Strategic Decisions'!$J$11 -> 0 | L72: 0 | M72: 0 | BA72: 0.72
B73: 13 | C73: TYPE Y | E73: 0 | I73: 0 | J73: 0 | K73: =I73*'Strategic Decisions'!$J$11 -> 0 | L73: 0 | M73: 0 | BA73: 0.73
B74: 14 | C74: TYPE Z | E74: 0 | I74: 0 | J74: 0 | K74: =I74*'Strategic Decisions'!$J$11 -> 0 | L74: 0 | M74: 0 | BA74: 0.74
C75: TOTAL REVENUE | E75: =SUM(E61:E74) -> 15670000 | I75: 1 | J75: =SUM(J60:J74) -> 20945000 | K75: =SUM(K61:K74) -> 0 | L75: =SUM(L61:L74) -> 0 | M75: =SUM(M60:M74) -> 20945000 | BA75: 0.75
BA76: 0.76
BA77: 0.77
BA78: 0.79
BA79: 0.8
BA80: 0.81
BA81: 0.82
BA82: 0.83
BA83: 0.84
BA84: 0.85
BA85: 0.86
BA86: 0.87
BA87: 0.88
BA88: 0.89
BA89: 0.9
BA90: 0.91
BA91: 0.92
BA92: 0.93
BA93: 0.94
BA94: 0.95
BA95: 0.96
BA96: 0.97
BA97: 0.98
BA98: 0.99
BA99: 1

Sheet Primary Baseline Tariff
C3: PRIMARY BASELINE TARIFF
C5: Below is a basic tariff calculated per baseline unit. Note: Electricity has a fixed and a variable component.
C7: VARIABLE COSTS PER CONSUMER GROUP | D7: TARIFF
B8: 1 | C8: =IF('Data Capture Costs'!C42="","",'Data Capture Costs'!C42) -> DOMESTIC - LOW INCOME (KwH) | D8: =IF('Data Capture Demand'!E12=0,0,'Data Capture Costs'!J42/'Data Capture Demand'!E12) -> 0.8429006295
B9: 2 | C9: =IF('Data Capture Costs'!C43="","",'Data Capture Costs'!C43) -> DOMESTIC - PRE-PAID (KwH) | D9: =IF('Data Capture Demand'!E21=0,0,'Data Capture Costs'!J43/'Data Capture Demand'!E21) -> 0.9226622885
B10: 3 | C10: =IF('Data Capture Costs'!C44="","",'Data Capture Costs'!C44) -> DOMESTIC - METERED SINGLE PHASE (KwH) | D10: =IF('Data Capture Demand'!E30=0,0,'Data Capture Costs'!J44/'Data Capture Demand'!E30) -> 1.050383861
B11: 4 | C11: =IF('Data Capture Costs'!C45="","",'Data Capture Costs'!C45) -> DOMESTIC - METERED THREE PHASE (KwH) | D11: =IF('Data Capture Demand'!E39=0,0,'Data Capture Costs'!J45/'Data Capture Demand'!E39) -> 0.9384521178
B12: 5 | C12: =IF('Data Capture Costs'!C46="","",'Data Capture Costs'!C46) -> INDUSTRIAL - METERED (KwH) | D12: =IF('Data Capture Demand'!E48=0,0,'Data Capture Costs'!J46/'Data Capture Demand'!E48) -> 0
B13: 6 | C13: =IF('Data Capture Costs'!C47="","",'Data Capture Costs'!C47) -> INDUSTRIAL - METERED (KvA) | D13: =IF('Data Capture Demand'!E57=0,0,'Data Capture Costs'!J47/'Data Capture Demand'!E57) -> 7.132236095
B14: 7 | C14: =IF('Data Capture Costs'!C48="","",'Data Capture Costs'!C48) -> COMMERCIAL - METERED (KwH) | D14: =IF('Data Capture Demand'!E66=0,0,'Data Capture Costs'!J48/'Data Capture Demand'!E66) -> 0.9398702232
B15: 8 | C15: =IF('Data Capture Costs'!C49="","",'Data Capture Costs'!C49) -> COMMERCIAL - METERED (KvA) | D15: =IF('Data Capture Demand'!E75=0,0,'Data Capture Costs'!J49/'Data Capture Demand'!E75) -> 0
B16: 9 | C16: =IF('Data Capture Costs'!C50="","",'Data Capture Costs'!C50) -> INSTITUTIONAL - METERED (KwH) | D16: =IF('Data Capture Demand'!E84=0,0,'Data Capture Costs'!J50/'Data Capture Demand'!E84) -> 0.7132236095
B17: 10 | C17: =IF('Data Capture Costs'!C51="","",'Data Capture Costs'!C51) -> TIME OF USE | D17: =IF('Data Capture Demand'!E93=0,0,'Data Capture Costs'!J51/'Data Capture Demand'!E93) -> 0
B18: 11 | C18: =IF('Data Capture Costs'!C52="","",'Data Capture Costs'!C52) -> TYPE V | D18: =IF('Data Capture Demand'!E102=0,0,'Data Capture Costs'!J52/'Data Capture Demand'!E102) -> 0
B19: 12 | C19: =IF('Data Capture Costs'!C53="","",'Data Capture Costs'!C53) -> TYPE X | D19: =IF('Data Capture Demand'!E111=0,0,'Data Capture Costs'!J53/'Data Capture Demand'!E111) -> 0
B20: 13 | C20: =IF('Data Capture Costs'!C54="","",'Data Capture Costs'!C54) -> TYPE Y | D20: =IF('Data Capture Demand'!E120=0,0,'Data Capture Costs'!J54/'Data Capture Demand'!E120) -> 0
B21: 14 | C21: =IF('Data Capture Costs'!C55="","",'Data Capture Costs'!C55) -> TYPE Z | D21: =IF('Data Capture Demand'!E129=0,0,'Data Capture Costs'!J55/'Data Capture Demand'!E129) -> 0
C23: FIXED FACILITY COSTS PER YEAR | D23: TARIFF
C24: ='Data Capture Costs'!C7 -> TOTAL FIXED FACILITY COSTS | D24: ='Data Capture Costs'!$D$7 -> 8105000
C25: ='Data Capture Users'!$C$44 -> TOTAL NUMBER OF STANDS | D25: ='Data Capture Users'!$D$44 -> 13200
C26: FIXED TARIFF FOR ELECTRICITY SUPPLY | D26: =IF(D24=0,0,D24/D25) -> 614.0151515

Sheet Adj Primary Baseline Tariff
C3: ADJUSTED PRIMARY BASELINE TARIFF
C5: Adjusted Primary Baseline Tariff after costing Free Basic Electricity.
H6: COST TO FREE BASIC ELECTRICITY | J6: =Menu!$J$4 -> SA RANDS
C7: VARIABLE COSTS PER CONSUMER GROUP | D7: TARIFF | H7: CONSUMER | I7: ELECTRICITY DEMAND | J7: REVENUE | K7: FREE BASIC ELECTR. COST
B8: 1 | C8: =IF('Data Capture Costs'!C42="","",'Data Capture Costs'!C42) -> DOMESTIC - LOW INCOME (KwH) | D8: =IF('Data Capture Demand'!E12=0,0,'Data Capture Costs'!J61/'Data Capture Demand'!E12) -> 0 | H8: OTHER CONSUMPTION | J8: ='Data Capture Costs'!E75 -> 15670000
B9: 2 | C9: =IF('Data Capture Costs'!C43="","",'Data Capture Costs'!C43) -> DOMESTIC - PRE-PAID (KwH) | D9: =IF('Data Capture Demand'!E21=0,0,'Data Capture Costs'!J62/'Data Capture Demand'!E21) -> 1.037479868 | H9: Domestic (Free Basic Electricity) Consumption | I9: ='Data Capture Demand'!E12 -> 2750000 | J9: ='Data Capture Costs'!E42 -> 1950000 | K9: =I9*'Primary Baseline Tariff'!D9 -> 2537321.293
B10: 3 | C10: =IF('Data Capture Costs'!C44="","",'Data Capture Costs'!C44) -> DOMESTIC - METERED SINGLE PHASE (KwH) | D10: =IF('Data Capture Demand'!E30=0,0,'Data Capture Costs'!J63/'Data Capture Demand'!E30) -> 1.181095318
B11: 4 | C11: =IF('Data Capture Costs'!C45="","",'Data Capture Costs'!C45) -> DOMESTIC - METERED THREE PHASE (KwH) | D11: =IF('Data Capture Demand'!E39=0,0,'Data Capture Costs'!J64/'Data Capture Demand'!E39) -> 1.055234609 | J11: `
B12: 5 | C12: =IF('Data Capture Costs'!C46="","",'Data Capture Costs'!C46) -> INDUSTRIAL - METERED (KwH) | D12: =IF('Data Capture Demand'!E48=0,0,'Data Capture Costs'!J65/'Data Capture Demand'!E48) -> 0
B13: 6 | C13: =IF('Data Capture Costs'!C47="","",'Data Capture Costs'!C47) -> INDUSTRIAL - METERED (KvA) | D13: =IF('Data Capture Demand'!E57=0,0,'Data Capture Costs'!J66/'Data Capture Demand'!E57) -> 8.019783025
B14: 7 | C14: =IF('Data Capture Costs'!C48="","",'Data Capture Costs'!C48) -> COMMERCIAL - METERED (KwH) | D14: =IF('Data Capture Demand'!E66=0,0,'Data Capture Costs'!J67/'Data Capture Demand'!E66) -> 1.056829185
B15: 8 | C15: =IF('Data Capture Costs'!C49="","",'Data Capture Costs'!C49) -> COMMERCIAL - METERED (KvA) | D15: =IF('Data Capture Demand'!E75=0,0,'Data Capture Costs'!J68/'Data Capture Demand'!E75) -> 0
B16: 9 | C16: =IF('Data Capture Costs'!C50="","",'Data Capture Costs'!C50) -> INSTITUTIONAL - METERED (KwH) | D16: =IF('Data Capture Demand'!E84=0,0,'Data Capture Costs'!J69/'Data Capture Demand'!E84) -> 0.8019783025
B17: 10 | C17: =IF('Data Capture Costs'!C51="","",'Data Capture Costs'!C51) -> TIME OF USE | D17: =IF('Data Capture Demand'!E93=0,0,'Data Capture Costs'!J70/'Data Capture Demand'!E93) -> 0
B18: 11 | C18: =IF('Data Capture Costs'!C52="","",'Data Capture Costs'!C52) -> TYPE V | D18: =IF('Data Capture Demand'!E102=0,0,'Data Capture Costs'!J71/'Data Capture Demand'!E102) -> 0
B19: 12 | C19: =IF('Data Capture Costs'!C53="","",'Data Capture Costs'!C53) -> TYPE X | D19: =IF('Data Capture Demand'!E111=0,0,'Data Capture Costs'!J72/'Data Capture Demand'!E111) -> 0
B20: 13 | C20: =IF('Data Capture Costs'!C54="","",'Data Capture Costs'!C54) -> TYPE Y | D20: =IF('Data Capture Demand'!E120=0,0,'Data Capture Costs'!J73/'Data Capture Demand'!E120) -> 0
B21: 14 | C21: =IF('Data Capture Costs'!C55="","",'Data Capture Costs'!C55) -> TYPE Z | D21: =IF('Data Capture Demand'!E129=0,0,'Data Capture Costs'!J74/'Data Capture Demand'!E129) -> 0
H22: FIXED AVAILABILITY FEES | J22: =Menu!$J$4 -> SA RANDS
C23: FIXED FACILITY COSTS PER YEAR | D23: TARIFF | H23: CONSUMER | I23: NO OF STANDS | J23: REVENUE | K23: FREE BASIC ELECTR. COST
C24: ='Primary Baseline Tariff'!$C$24 -> TOTAL FIXED FACILITY COSTS | D24: ='Data Capture Costs'!$D$7 -> 8105000 | H24: OTHER CONSUMERS | J24: ='Primary Baseline Tariff'!D24-'Data Capture Users'!L12 -> 8105000
C25: ='Data Capture Users'!$C$44 -> TOTAL NUMBER OF STANDS | D25: ='Data Capture Users'!$D$44-'Data Capture Users'!D12 -> 11000 | H25: Domestic (Free Basic Electricity) Consumers | I25: ='Data Capture Users'!D12 -> 2200 | J25: ='Data Capture Users'!L12 -> 0 | K25: =J25 -> 0
C26: ='Primary Baseline Tariff'!C26 -> FIXED TARIFF FOR ELECTRICITY SUPPLY | D26: =IF(D24=0,0,D24/D25) -> 736.8181818

Sheet Strategic Decisions
BD1: Yes
C3: STRATEGIC DECISIONS | J3: Changes to Variable Costs
J4: =$D$8+$F$8 -> 0 | BD4: No
C5: FINANCIAL DECISIONS | D5: AMOUNT | E5: % | F5: % AMT | J5: =$D$13+$F$13 -> 0
B6: 1 | C6: Do you wish to achieve a Surplus on this service? | D6: YES | J6: =$D$19+$F$19 -> 0
D7: NO | J7: TOTAL SUBSIDY
C8: Enter Size of the Surplus | D8: 0 | E8: 0 | F8: =E8%*'Data Capture Costs'!$D$6 -> 0 | J8: =SUM(J4-J5+J6) -> 0
J10: Subsidy Amt
B11: 2 | C11: Are you willing to make a Deficit on this service? | D11: YES | J11: =$D$8-$D$13+$D$19 -> 0
D12: NO | J12: Subsidy %
C13: Enter Size of the Deficit | D13: 0 | E13: 0 | F13: =E13%*'Data Capture Costs'!$D$6 -> 0 | J13: =$E$8-$E$13+$E$19 -> 0
C15: AFFORDABILITY DECISIONS | D15: AMOUNT | E15: % | F15: % AMT
C16: Most of these decisions are contained in the municipality's Tariff policy and therefore already form part of the information used to populate the model. However the decisions can at this point be re-visited and altered as necessary before the tariff is finalised.
B17: 3 | C17: Do you plan to subsidise the delivery of this service (excluding Free Basic Services)? | D17: YES
D18: NO
C19: Enter Size of Subsidy | D19: 0 | E19: 0 | F19: =E19%*'Data Capture Costs'!$D$6 -> 0
B22: 4 | C22: Do you wish to limit the Size of the Tariff levied on certain type of consumers? | D22: CHANGE VARIABLE TARIFF
D23: CHANGE FIXED TARIFF
B26: 5 | C26: Do you wish to Escalate the Tariff levied on certain type of consumers? | D26: CHANGE VARIABLE TARIFF
D27: CHANGE FIXED TARIFF

Sheet Revised Primary Baseline Tariff
C3: REVISED PRIMARY BASELINE TARIFF
C5: After Strategic Decisions this is the revised tariff.
C7: VARIABLE COSTS PER CONSUMER GROUP | D7: TARIFF
B8: 1 | C8: =IF('Data Capture Costs'!C42="","",'Data Capture Costs'!C42) -> DOMESTIC - LOW INCOME (KwH) | D8: 0
B9: 2 | C9: =IF('Data Capture Costs'!C43="","",'Data Capture Costs'!C43) -> DOMESTIC - PRE-PAID (KwH) | D9: =IF('Data Capture Demand'!E21=0,0,'Data Capture Costs'!M62/'Data Capture Demand'!E21) -> 1.037479868
B10: 3 | C10: =IF('Data Capture Costs'!C44="","",'Data Capture Costs'!C44) -> DOMESTIC - METERED SINGLE PHASE (KwH) | D10: =IF('Data Capture Demand'!E30=0,0,'Data Capture Costs'!M63/'Data Capture Demand'!E30) -> 1.181095318
B11: 4 | C11: =IF('Data Capture Costs'!C45="","",'Data Capture Costs'!C45) -> DOMESTIC - METERED THREE PHASE (KwH) | D11: =IF('Data Capture Demand'!E39=0,0,'Data Capture Costs'!M64/'Data Capture Demand'!E39) -> 1.055234609
B12: 5 | C12: =IF('Data Capture Costs'!C46="","",'Data Capture Costs'!C46) -> INDUSTRIAL - METERED (KwH) | D12: =IF('Data Capture Demand'!E48=0,0,'Data Capture Costs'!M65/'Data Capture Demand'!E48) -> 0
B13: 6 | C13: =IF('Data Capture Costs'!C47="","",'Data Capture Costs'!C47) -> INDUSTRIAL - METERED (KvA) | D13: =IF('Data Capture Demand'!E57=0,0,'Data Capture Costs'!M66/'Data Capture Demand'!E57) -> 8.019783025
B14: 7 | C14: =IF('Data Capture Costs'!C48="","",'Data Capture Costs'!C48) -> COMMERCIAL - METERED (KwH) | D14: =IF('Data Capture Demand'!E66=0,0,'Data Capture Costs'!M67/'Data Capture Demand'!E66) -> 1.056829185
B15: 8 | C15: =IF('Data Capture Costs'!C49="","",'Data Capture Costs'!C49) -> COMMERCIAL - METERED (KvA) | D15: =IF('Data Capture Demand'!E75=0,0,'Data Capture Costs'!M68/'Data Capture Demand'!E75) -> 0
B16: 9 | C16: =IF('Data Capture Costs'!C50="","",'Data Capture Costs'!C50) -> INSTITUTIONAL - METERED (KwH) | D16: =IF('Data Capture Demand'!E84=0,0,'Data Capture Costs'!M69/'Data Capture Demand'!E84) -> 0.8019783025
B17: 10 | C17: =IF('Data Capture Costs'!C51="","",'Data Capture Costs'!C51) -> TIME OF USE | D17: =IF('Data Capture Demand'!E93=0,0,'Data Capture Costs'!M70/'Data Capture Demand'!E93) -> 0
B18: 11 | C18: =IF('Data Capture Costs'!C52="","",'Data Capture Costs'!C52) -> TYPE V | D18: =IF('Data Capture Demand'!E102=0,0,'Data Capture Costs'!M71/'Data Capture Demand'!E102) -> 0
B19: 12 | C19: =IF('Data Capture Costs'!C53="","",'Data Capture Costs'!C53) -> TYPE X | D19: =IF('Data Capture Demand'!E111=0,0,'Data Capture Costs'!M72/'Data Capture Demand'!E111) -> 0
B20: 13 | C20: =IF('Data Capture Costs'!C54="","",'Data Capture Costs'!C54) -> TYPE Y | D20: =IF('Data Capture Demand'!E120=0,0,'Data Capture Costs'!M73/'Data Capture Demand'!E120) -> 0
B21: 14 | C21: =IF('Data Capture Costs'!C55="","",'Data Capture Costs'!C55) -> TYPE Z | D21: =IF('Data Capture Demand'!E129=0,0,'Data Capture Costs'!M74/'Data Capture Demand'!E129) -> 0
C23: FIXED FACILITY COSTS PER YEAR | D23: TARIFF
C24: ='Primary Baseline Tariff'!$C$24 -> TOTAL FIXED FACILITY COSTS | D24: ='Data Capture Costs'!$D$7 -> 8105000
C25: ='Data Capture Users'!$C$44 -> TOTAL NUMBER OF STANDS | D25: ='Data Capture Users'!D44-'Data Capture Users'!D12 -> 11000
C26: ='Primary Baseline Tariff'!C26 -> FIXED TARIFF FOR ELECTRICITY SUPPLY | D26: =IF(D24=0,0,D24/D25) -> 736.8181818

Sheet Test Afford of Variable Tariff
C3: CURRENT & REVISED TARIFF COMPARISON - VARIABLE CONSUMPTION
C5: ='Data Capture Demand'!C8 -> CONSUMER | D5: ='Data Capture Demand'!D8 -> CONSUMPTION LEVEL | E5: ='Data Capture Demand'!E8&" ("&Menu!J4&")" -> UNITS OF DEMAND (SA RANDS) | F5: CURRENT ACTUAL | H5: REVISED TARIFF | K5: AFFORDABILITY ADJUSTMENT TO REVISED PRIMARY BASELINE | O5: Current Actual - Revised | P5: PROFIT\LOSS
F6: TARIFF (Historical) | G6: REVENUE | H6: TARIFF | I6: REVENUE | K6: % CHANGE | L6: TARIFF | M6: REVENUE | O6: TARIFF | P6: REVENUE
C7: =IF('Data Capture Demand'!C10="","",'Data Capture Demand'!C10) -> Domestic Low Income Pre-paid | D7: =IF('Data Capture Demand'!D10="","",'Data Capture Demand'!D10) ->  | E7: ='Data Capture Demand'!E10 -> 2750000 | F7: ='Data Capture Demand'!H10 -> 0.78 | G7: =SUM('Data Capture Demand'!G10*F7) -> 1950000 | H7: ='Revised Primary Baseline Tariff'!$D$8 -> 0 | I7: =SUM(E7*H7) -> 0 | K7: 0 | L7: =SUM(H7*K7%)+H7 -> 0 | M7: =E7*L7 -> 0 | O7: =L7-F7 -> -0.78 | P7: =M7-G7 -> -1950000
C8: =IF('Data Capture Demand'!C11="","",'Data Capture Demand'!C11) -> Domestic Low Income Metered | D8: =IF('Data Capture Demand'!D11="","",'Data Capture Demand'!D11) ->  | E8: ='Data Capture Demand'!E11 -> 0 | F8: ='Data Capture Demand'!H11 -> 0.72 | G8: =SUM('Data Capture Demand'!G11*F8) -> 0 | H8: ='Revised Primary Baseline Tariff'!$D$8 -> 0 | I8: =SUM(E8*H8) -> 0 | K8: 0 | L8: =SUM(H8*K8%)+H8 -> 0 | M8: =E8*L8 -> 0 | O8: =L8-F8 -> -0.72 | P8: =M8-G8 -> 0
C9: ='Data Capture Demand'!C9&" TOTAL" -> DOMESTIC - LOW INCOME (KwH) TOTAL | E9: =SUM(E7:E8) -> 2750000 | G9: =SUM(G7:G8) -> 1950000 | I9: =SUM(I7:I8) -> 0 | M9: =SUM(M7:M8) -> 0 | P9: =SUM(P7:P8) -> -1950000
C10: =IF('Data Capture Demand'!C15="","",'Data Capture Demand'!C15) -> Domestic Pre-Paid Type 1 | D10: =IF('Data Capture Demand'!D15="","",'Data Capture Demand'!D15) ->  | E10: ='Data Capture Demand'!E15 -> 1650000 | F10: ='Data Capture Demand'!H15 -> 0.78 | G10: =SUM('Data Capture Demand'!G15*F10) -> 1170000 | H10: ='Revised Primary Baseline Tariff'!$D$9 -> 1.037479868 | I10: =SUM(E10*H10) -> 1711841.781 | K10: 0 | L10: =SUM(H10*K10%)+H10 -> 1.037479868 | M10: 1711841.781 | O10: =L10-F10 -> 0.2574798675 | P10: =M10-G10 -> 541841.7814
C11: =IF('Data Capture Demand'!C16="","",'Data Capture Demand'!C16) -> Domestic Pre-Paid Type 2 | D11: =IF('Data Capture Demand'!D16="","",'Data Capture Demand'!D16) ->  | E11: ='Data Capture Demand'!E16 -> 1500000 | F11: ='Data Capture Demand'!H16 -> 0.85 | G11: =SUM('Data Capture Demand'!G16*F11) -> 1275000 | H11: ='Revised Primary Baseline Tariff'!$D$9 -> 1.037479868 | I11: 1556219.801 | K11: 0 | L11: 1.037479868 | M11: 1556219.801 | O11: =L11-F11 -> 0.1874798675 | P11: =M11-G11 -> 281219.8013
C12: =IF('Data Capture Demand'!C17="","",'Data Capture Demand'!C17) -> Domestic Pre-Paid Type 3 | D12: =IF('Data Capture Demand'!D17="","",'Data Capture Demand'!D17) ->  | E12: ='Data Capture Demand'!E17 -> 0 | F12: ='Data Capture Demand'!H17 -> 0 | G12: =SUM('Data Capture Demand'!G17*F12) -> 0 | H12: ='Revised Primary Baseline Tariff'!$D$9 -> 1.037479868 | I12: 0 | K12: 0 | L12: 1.037479868 | M12: 0 | O12: =L12-F12 -> 1.037479868 | P12: 0
C13: =IF('Data Capture Demand'!C18="","",'Data Capture Demand'!C18) -> Domestic Pre-Paid Type 4 | D13: =IF('Data Capture Demand'!D18="","",'Data Capture Demand'!D18) ->  | E13: ='Data Capture Demand'!E18 -> 0 | F13: ='Data Capture Demand'!H18 -> 0 | G13: =SUM('Data Capture Demand'!G18*F13) -> 0 | H13: ='Revised Primary Baseline Tariff'!$D$9 -> 1.037479868 | I13: 0 | K13: 0 | L13: 1.037479868 | M13: 0 | O13: =L13-F13 -> 1.037479868 | P13: 0
C14: =IF('Data Capture Demand'!C19="","",'Data Capture Demand'!C19) -> Domestic Pre-Paid Type 5 | D14: =IF('Data Capture Demand'!D19="","",'Data Capture Demand'!D19) ->  | E14: ='Data Capture Demand'!E19 -> 0 | F14: ='Data Capture Demand'!H19 -> 0 | G14: =SUM('Data Capture Demand'!G19*F14) -> 0 | H14: ='Revised Primary Baseline Tariff'!$D$9 -> 1.037479868 | I14: 0 | K14: 0 | L14: 1.037479868 | M14: 0 | O14: =L14-F14 -> 1.037479868 | P14: 0
C15: =IF('Data Capture Demand'!C20="","",'Data Capture Demand'!C20) -> Domestic Pre-Paid Type 6 | D15: =IF('Data Capture Demand'!D20="","",'Data Capture Demand'!D20) ->  | E15: ='Data Capture Demand'!E20 -> 0 | F15: ='Data Capture Demand'!H20 -> 0 | G15: =SUM('Data Capture Demand'!G20*F15) -> 0 | H15: ='Revised Primary Baseline Tariff'!$D$9 -> 1.037479868 | I15: 0 | K15: 0 | L15: 1.037479868 | M15: 0 | O15: =L15-F15 -> 1.037479868 | P15: 0
C16: ='Data Capture Demand'!C14&" TOTAL" -> DOMESTIC - PRE-PAID (KwH) TOTAL | E16: =SUM(E10:E15) -> 3150000 | G16: =SUM(G10:G15) -> 2445000 | I16: =SUM(I10:I15) -> 3268061.583 | M16: =SUM(M10:M15) -> 3268061.583 | P16: =SUM(P10:P15) -> 823061.5826
C17: =IF('Data Capture Demand'!C24="","",'Data Capture Demand'!C24) -> Domestic Metered Single Phase Type 1 | D17: =IF('Data Capture Demand'!D24="","",'Data Capture Demand'!D24) ->  | E17: ='Data Capture Demand'!E24 -> 1400000 | F17: ='Data Capture Demand'!H24 -> 0.72 | G17: =SUM('Data Capture Demand'!G24*F17) -> 1080000 | H17: ='Revised Primary Baseline Tariff'!$D$10 -> 1.181095318 | I17: =SUM(E17*H17) -> 1653533.445 | K17: 0 | L17: =SUM(H17*K17%)+H17 -> 1.181095318 | M17: =E17*L17 -> 1653533.445 | O17: =L17-F17 -> 0.4610953182 | P17: =M17-G17 -> 573533.4455
C18: =IF('Data Capture Demand'!C25="","",'Data Capture Demand'!C25) -> Domestic Metered Single Phase Type 2 | D18: =IF('Data Capture Demand'!D25="","",'Data Capture Demand'!D25) ->  | E18: ='Data Capture Demand'!E25 -> 1350000 | F18: ='Data Capture Demand'!H25 -> 0.9 | G18: =SUM('Data Capture Demand'!G25*F18) -> 1350000 | H18: ='Revised Primary Baseline Tariff'!$D$10 -> 1.181095318 | I18: 1594478.68 | K18: 0 | L18: 1.181095318 | M18: 1594478.68 | O18: 0.2810953182 | P18: 244478.6796
C19: =IF('Data Capture Demand'!C26="","",'Data Capture Demand'!C26) -> Domestic Metered Single Phase Type 3 | D19: =IF('Data Capture Demand'!D26="","",'Data Capture Demand'!D26) ->  | E19: ='Data Capture Demand'!E26 -> 0 | F19: ='Data Capture Demand'!H26 -> 0 | G19: =SUM('Data Capture Demand'!G26*F19) -> 0 | H19: ='Revised Primary Baseline Tariff'!$D$10 -> 1.181095318 | I19: 0 | K19: 0 | L19: 1.181095318 | M19: 0 | O19: 1.181095318 | P19: 0
C20: =IF('Data Capture Demand'!C27="","",'Data Capture Demand'!C27) -> Domestic Metered Single Phase Type 4 | D20: =IF('Data Capture Demand'!D27="","",'Data Capture Demand'!D27) ->  | E20: ='Data Capture Demand'!E27 -> 0 | F20: ='Data Capture Demand'!H27 -> 0 | G20: =SUM('Data Capture Demand'!G27*F20) -> 0 | H20: ='Revised Primary Baseline Tariff'!$D$10 -> 1.181095318 | I20: 0 | K20: 0 | L20: 1.181095318 | M20: 0 | O20: 1.181095318 | P20: 0
C21: =IF('Data Capture Demand'!C28="","",'Data Capture Demand'!C28) -> Domestic Metered Single Phase Type 5 | D21: =IF('Data Capture Demand'!D28="","",'Data Capture Demand'!D28) ->  | E21: ='Data Capture Demand'!E28 -> 0 | F21: ='Data Capture Demand'!H28 -> 0 | G21: =SUM('Data Capture Demand'!G28*F21) -> 0 | H21: ='Revised Primary Baseline Tariff'!$D$10 -> 1.181095318 | I21: 0 | K21: 0 | L21: 1.181095318 | M21: 0 | O21: 1.181095318 | P21: 0
C22: =IF('Data Capture Demand'!C29="","",'Data Capture Demand'!C29) -> Domestic Metered Single Phase Type 6 | D22: =IF('Data Capture Demand'!D29="","",'Data Capture Demand'!D29) ->  | E22: ='Data Capture Demand'!E29 -> 0 | F22: ='Data Capture Demand'!H29 -> 0 | G22: =SUM('Data Capture Demand'!G29*F22) -> 0 | H22: ='Revised Primary Baseline Tariff'!$D$10 -> 1.181095318 | I22: 0 | K22: 0 | L22: 1.181095318 | M22: 0 | O22: 1.181095318 | P22: 0
C23: ='Data Capture Demand'!C23&" TOTAL" -> DOMESTIC - METERED SINGLE PHASE (KwH) TOTAL | E23: =SUM(E17:E22) -> 2750000 | G23: =SUM(G17:G22) -> 2430000 | I23: =SUM(I17:I22) -> 3248012.125 | M23: =SUM(M17:M22) -> 3248012.125 | P23: =SUM(P17:P22) -> 818012.1251
C24: =IF('Data Capture Demand'!C33="","",'Data Capture Demand'!C33) -> Domestic Metered Three Phase Type 1 | D24: =IF('Data Capture Demand'!D33="","",'Data Capture Demand'!D33) ->  | E24: ='Data Capture Demand'!E33 -> 3300000 | F24: ='Data Capture Demand'!H33 -> 0.75 | G24: =SUM('Data Capture Demand'!G33*F24) -> 2250000 | H24: ='Revised Primary Baseline Tariff'!$D$11 -> 1.055234609 | I24: =SUM(E24*H24) -> 3482274.208 | K24: 0 | L24: =SUM(H24*K24%)+H24 -> 1.055234609 | M24: =E24*L24 -> 3482274.208 | O24: =L24-F24 -> 0.3052346085 | P24: =M24-G24 -> 1232274.208
C25: =IF('Data Capture Demand'!C34="","",'Data Capture Demand'!C34) -> Domestic Metered Three Phase Type 2 | D25: =IF('Data Capture Demand'!D34="","",'Data Capture Demand'!D34) ->  | E25: ='Data Capture Demand'!E34 -> 5250000 | F25: ='Data Capture Demand'!H34 -> 0.9 | G25: =SUM('Data Capture Demand'!G34*F25) -> 4500000 | H25: ='Revised Primary Baseline Tariff'!$D$11 -> 1.055234609 | I25: 5539981.695 | K25: 0 | L25: =SUM(H25*K25%)+H25 -> 1.055234609 | M25: 5539981.695 | O25: 0.1552346085 | P25: 1039981.695
C26: =IF('Data Capture Demand'!C35="","",'Data Capture Demand'!C35) -> Domestic Metered Three Phase Type 3 | D26: =IF('Data Capture Demand'!D35="","",'Data Capture Demand'!D35) ->  | E26: ='Data Capture Demand'!E35 -> 0 | F26: ='Data Capture Demand'!H35 -> 0 | G26: =SUM('Data Capture Demand'!G35*F26) -> 0 | H26: ='Revised Primary Baseline Tariff'!$D$11 -> 1.055234609 | I26: 0 | K26: 0 | L26: =SUM(H26*K26%)+H26 -> 1.055234609 | M26: 0 | O26: 1.055234609 | P26: 0
C27: =IF('Data Capture Demand'!C36="","",'Data Capture Demand'!C36) -> Domestic Metered Three Phase Type 4 | D27: =IF('Data Capture Demand'!D36="","",'Data Capture Demand'!D36) ->  | E27: ='Data Capture Demand'!E36 -> 0 | F27: ='Data Capture Demand'!H36 -> 0 | G27: =SUM('Data Capture Demand'!G36*F27) -> 0 | H27: ='Revised Primary Baseline Tariff'!$D$11 -> 1.055234609 | I27: 0 | K27: 0 | L27: =SUM(H27*K27%)+H27 -> 1.055234609 | M27: 0 | O27: 1.055234609 | P27: 0
C28: =IF('Data Capture Demand'!C37="","",'Data Capture Demand'!C37) -> Domestic Metered Three Phase Type 5 | D28: =IF('Data Capture Demand'!D37="","",'Data Capture Demand'!D37) ->  | E28: ='Data Capture Demand'!E37 -> 0 | F28: ='Data Capture Demand'!H37 -> 0 | G28: =SUM('Data Capture Demand'!G37*F28) -> 0 | H28: ='Revised Primary Baseline Tariff'!$D$11 -> 1.055234609 | I28: 0 | K28: 0 | L28: =SUM(H28*K28%)+H28 -> 1.055234609 | M28: 0 | O28: 1.055234609 | P28: 0
C29: =IF('Data Capture Demand'!C38="","",'Data Capture Demand'!C38) -> Domestic Metered Three Phase Type 6 | D29: =IF('Data Capture Demand'!D38="","",'Data Capture Demand'!D38) ->  | E29: ='Data Capture Demand'!E38 -> 0 | F29: ='Data Capture Demand'!H38 -> 0 | G29: =SUM('Data Capture Demand'!G38*F29) -> 0 | H29: ='Revised Primary Baseline Tariff'!$D$11 -> 1.055234609 | I29: 0 | K29: 0 | L29: =SUM(H29*K29%)+H29 -> 1.055234609 | M29: 0 | O29: 1.055234609 | P29: 0
C30: ='Data Capture Demand'!C32&" TOTAL" -> DOMESTIC - METERED THREE PHASE (KwH) TOTAL | E30: =SUM(E24:E29) -> 8550000 | G30: =SUM(G24:G29) -> 6750000 | I30: =SUM(I24:I29) -> 9022255.903 | M30: =SUM(M24:M29) -> 9022255.903 | P30: =SUM(P24:P29) -> 2272255.903
C31: =IF('Data Capture Demand'!C42="","",'Data Capture Demand'!C42) -> Industrial Metered (KwH) Type 1 | D31: =IF('Data Capture Demand'!D42="","",'Data Capture Demand'!D42) ->  | E31: ='Data Capture Demand'!E42 -> 0 | F31: ='Data Capture Demand'!H42 -> 0 | G31: =SUM('Data Capture Demand'!G42*F31) -> 0 | H31: ='Revised Primary Baseline Tariff'!$D$12 -> 0 | I31: =SUM(E31*H31) -> 0 | K31: 0 | L31: =SUM(H31*K31%)+H31 -> 0 | M31: =E31*L31 -> 0 | O31: =L31-F31 -> 0 | P31: =M31-G31 -> 0
C32: =IF('Data Capture Demand'!C43="","",'Data Capture Demand'!C43) -> Industrial Metered (KwH) Type 2 | D32: =IF('Data Capture Demand'!D43="","",'Data Capture Demand'!D43) ->  | E32: ='Data Capture Demand'!E43 -> 0 | F32: ='Data Capture Demand'!H43 -> 0 | G32: =SUM('Data Capture Demand'!G43*F32) -> 0 | H32: ='Revised Primary Baseline Tariff'!$D$12 -> 0 | I32: 0 | K32: 0 | L32: 0 | M32: 0 | O32: 0 | P32: 0
C33: =IF('Data Capture Demand'!C44="","",'Data Capture Demand'!C44) -> Industrial Metered (KwH) Type 3 | D33: =IF('Data Capture Demand'!D44="","",'Data Capture Demand'!D44) ->  | E33: ='Data Capture Demand'!E44 -> 0 | F33: ='Data Capture Demand'!H44 -> 0 | G33: =SUM('Data Capture Demand'!G44*F33) -> 0 | H33: ='Revised Primary Baseline Tariff'!$D$12 -> 0 | I33: 0 | K33: 0 | L33: 0 | M33: 0 | O33: 0 | P33: 0
C34: =IF('Data Capture Demand'!C45="","",'Data Capture Demand'!C45) -> Industrial Metered (KwH) Type 4 | D34: =IF('Data Capture Demand'!D45="","",'Data Capture Demand'!D45) ->  | E34: ='Data Capture Demand'!E45 -> 0 | F34: ='Data Capture Demand'!H45 -> 0 | G34: =SUM('Data Capture Demand'!G45*F34) -> 0 | H34: ='Revised Primary Baseline Tariff'!$D$12 -> 0 | I34: 0 | K34: 0 | L34: 0 | M34: 0 | O34: 0 | P34: 0
C35: =IF('Data Capture Demand'!C46="","",'Data Capture Demand'!C46) -> Industrial Metered (KwH) Type 5 | D35: =IF('Data Capture Demand'!D46="","",'Data Capture Demand'!D46) ->  | E35: ='Data Capture Demand'!E46 -> 0 | F35: ='Data Capture Demand'!H46 -> 0 | G35: =SUM('Data Capture Demand'!G46*F35) -> 0 | H35: ='Revised Primary Baseline Tariff'!$D$12 -> 0 | I35: 0 | K35: 0 | L35: 0 | M35: 0 | O35: 0 | P35: 0
C36: =IF('Data Capture Demand'!C47="","",'Data Capture Demand'!C47) -> Industrial Metered (KwH) Type 6 | D36: =IF('Data Capture Demand'!D47="","",'Data Capture Demand'!D47) ->  | E36: ='Data Capture Demand'!E47 -> 0 | F36: ='Data Capture Demand'!H47 -> 0 | G36: =SUM('Data Capture Demand'!G47*F36) -> 0 | H36: ='Revised Primary Baseline Tariff'!$D$12 -> 0 | I36: 0 | K36: 0 | L36: 0 | M36: 0 | O36: 0 | P36: 0
C37: ='Data Capture Demand'!C41&" TOTAL" -> INDUSTRIAL - METERED (KwH) TOTAL | E37: =SUM(E31:E36) -> 0 | G37: =SUM(G31:G36) -> 0 | I37: =SUM(I31:I36) -> 0 | M37: =SUM(M31:M36) -> 0 | P37: =SUM(P31:P36) -> 0
C38: =IF('Data Capture Demand'!C51="","",'Data Capture Demand'!C51) -> Industrial Metered (KvA) Type 1 | D38: =IF('Data Capture Demand'!D51="","",'Data Capture Demand'!D51) ->  | E38: ='Data Capture Demand'!E51 -> 100000 | F38: ='Data Capture Demand'!H51 -> 6 | G38: =SUM('Data Capture Demand'!G51*F38) -> 600000 | H38: ='Revised Primary Baseline Tariff'!$D$13 -> 8.019783025 | I38: =SUM(E38*H38) -> 801978.3025 | K38: 0 | L38: =SUM(H38*K38%)+H38 -> 8.019783025 | M38: =E38*L38 -> 801978.3025 | O38: =L38-F38 -> 2.019783025 | P38: =M38-G38 -> 201978.3025
C39: =IF('Data Capture Demand'!C52="","",'Data Capture Demand'!C52) -> Industrial Metered (KvA) Type 2 | D39: =IF('Data Capture Demand'!D52="","",'Data Capture Demand'!D52) ->  | E39: ='Data Capture Demand'!E52 -> 0 | F39: ='Data Capture Demand'!H52 -> 0 | G39: =SUM('Data Capture Demand'!G52*F39) -> 0 | H39: ='Revised Primary Baseline Tariff'!$D$13 -> 8.019783025 | I39: 0 | K39: 0 | L39: 8.019783025 | M39: 0 | O39: =L39-F39 -> 8.019783025 | P39: =M39-G39 -> 0
C40: =IF('Data Capture Demand'!C53="","",'Data Capture Demand'!C53) -> Industrial Metered (KvA) Type 3 | D40: =IF('Data Capture Demand'!D53="","",'Data Capture Demand'!D53) ->  | E40: ='Data Capture Demand'!E53 -> 0 | F40: ='Data Capture Demand'!H53 -> 0 | G40: =SUM('Data Capture Demand'!G53*F40) -> 0 | H40: ='Revised Primary Baseline Tariff'!$D$13 -> 8.019783025 | I40: 0 | K40: 0 | L40: 8.019783025 | M40: 0 | O40: =L40-F40 -> 8.019783025 | P40: 0
C41: =IF('Data Capture Demand'!C54="","",'Data Capture Demand'!C54) -> Industrial Metered (KvA) Type 4 | D41: =IF('Data Capture Demand'!D54="","",'Data Capture Demand'!D54) ->  | E41: ='Data Capture Demand'!E54 -> 0 | F41: ='Data Capture Demand'!H54 -> 0 | G41: =SUM('Data Capture Demand'!G54*F41) -> 0 | H41: ='Revised Primary Baseline Tariff'!$D$13 -> 8.019783025 | I41: 0 | K41: 0 | L41: 8.019783025 | M41: 0 | O41: =L41-F41 -> 8.019783025 | P41: 0
C42: =IF('Data Capture Demand'!C55="","",'Data Capture Demand'!C55) -> Industrial Metered (KvA) Type 5 | D42: =IF('Data Capture Demand'!D55="","",'Data Capture Demand'!D55) ->  | E42: ='Data Capture Demand'!E55 -> 0 | F42: ='Data Capture Demand'!H55 -> 0 | G42: =SUM('Data Capture Demand'!G55*F42) -> 0 | H42: ='Revised Primary Baseline Tariff'!$D$13 -> 8.019783025 | I42: 0 | K42: 0 | L42: 8.019783025 | M42: 0 | O42: =L42-F42 -> 8.019783025 | P42: 0
C43: =IF('Data Capture Demand'!C56="","",'Data Capture Demand'!C56) -> Industrial Metered (KvA) Type 6 | D43: =IF('Data Capture Demand'!D56="","",'Data Capture Demand'!D56) ->  | E43: ='Data Capture Demand'!E56 -> 0 | F43: ='Data Capture Demand'!H56 -> 0 | G43: =SUM('Data Capture Demand'!G56*F43) -> 0 | H43: ='Revised Primary Baseline Tariff'!$D$13 -> 8.019783025 | I43: 0 | K43: 0 | L43: 8.019783025 | M43: 0 | O43: =L43-F43 -> 8.019783025 | P43: 0
C44: ='Data Capture Demand'!C50&" TOTAL" -> INDUSTRIAL - METERED (KvA) TOTAL | E44: =SUM(E38:E43) -> 100000 | G44: =SUM(G38:G43) -> 600000 | I44: =SUM(I38:I43) -> 801978.3025 | M44: =SUM(M38:M43) -> 801978.3025 | P44: =SUM(P38:P43) -> 201978.3025
C45: =IF('Data Capture Demand'!C60="","",'Data Capture Demand'!C60) -> Commercial Metered (KwH) Type 1 | D45: =IF('Data Capture Demand'!D60="","",'Data Capture Demand'!D60) ->  | E45: ='Data Capture Demand'!E60 -> 1650000 | F45: ='Data Capture Demand'!H60 -> 0.75 | G45: =SUM('Data Capture Demand'!G60*F45) -> 1125000 | H45: ='Revised Primary Baseline Tariff'!$D$14 -> 1.056829185 | I45: =SUM(E45*H45) -> 1743768.156 | K45: 0 | L45: =SUM(H45*K45%)+H45 -> 1.056829185 | M45: =E45*L45 -> 1743768.156 | O45: =L45-F45 -> 0.3068291853 | P45: =M45-G45 -> 618768.1557
C46: =IF('Data Capture Demand'!C61="","",'Data Capture Demand'!C61) -> Commercial Metered (KwH) Type 2 | D46: =IF('Data Capture Demand'!D61="","",'Data Capture Demand'!D61) ->  | E46: ='Data Capture Demand'!E61 -> 2100000 | F46: ='Data Capture Demand'!H61 -> 0.92 | G46: =SUM('Data Capture Demand'!G61*F46) -> 1840000 | H46: ='Revised Primary Baseline Tariff'!$D$14 -> 1.056829185 | I46: 2219341.289 | K46: 0 | L46: 1.056829185 | M46: 2219341.289 | O46: =L46-F46 -> 0.1368291853 | P46: =M46-G46 -> 379341.2891
C47: =IF('Data Capture Demand'!C62="","",'Data Capture Demand'!C62) -> Commercial Metered (KwH) Type 3 | D47: =IF('Data Capture Demand'!D62="","",'Data Capture Demand'!D62) ->  | E47: ='Data Capture Demand'!E62 -> 0 | F47: ='Data Capture Demand'!H62 -> 0 | G47: =SUM('Data Capture Demand'!G62*F47) -> 0 | H47: ='Revised Primary Baseline Tariff'!$D$14 -> 1.056829185 | I47: 0 | K47: 0 | L47: 1.056829185 | M47: 0 | O47: =L47-F47 -> 1.056829185 | P47: 0
C48: =IF('Data Capture Demand'!C63="","",'Data Capture Demand'!C63) -> Commercial Metered (KwH) Type 4 | D48: =IF('Data Capture Demand'!D63="","",'Data Capture Demand'!D63) ->  | E48: ='Data Capture Demand'!E63 -> 0 | F48: ='Data Capture Demand'!H63 -> 0 | G48: =SUM('Data Capture Demand'!G63*F48) -> 0 | H48: ='Revised Primary Baseline Tariff'!$D$14 -> 1.056829185 | I48: 0 | K48: 0 | L48: 1.056829185 | M48: 0 | O48: =L48-F48 -> 1.056829185 | P48: 0
C49: =IF('Data Capture Demand'!C64="","",'Data Capture Demand'!C64) -> Commercial Metered (KwH) Type 5 | D49: =IF('Data Capture Demand'!D64="","",'Data Capture Demand'!D64) ->  | E49: ='Data Capture Demand'!E64 -> 0 | F49: ='Data Capture Demand'!H64 -> 0 | G49: =SUM('Data Capture Demand'!G64*F49) -> 0 | H49: ='Revised Primary Baseline Tariff'!$D$14 -> 1.056829185 | I49: 0 | K49: 0 | L49: 1.056829185 | M49: 0 | O49: =L49-F49 -> 1.056829185 | P49: 0
C50: =IF('Data Capture Demand'!C65="","",'Data Capture Demand'!C65) -> Commercial Metered (KwH) Type 6 | D50: =IF('Data Capture Demand'!D65="","",'Data Capture Demand'!D65) ->  | E50: ='Data Capture Demand'!E65 -> 0 | F50: ='Data Capture Demand'!H65 -> 0 | G50: =SUM('Data Capture Demand'!G65*F50) -> 0 | H50: ='Revised Primary Baseline Tariff'!$D$14 -> 1.056829185 | I50: 0 | K50: 0 | L50: 1.056829185 | M50: 0 | O50: =L50-F50 -> 1.056829185 | P50: 0
C51: ='Data Capture Demand'!C59&" TOTAL" -> COMMERCIAL - METERED (KwH) TOTAL | E51: =SUM(E45:E50) -> 3750000 | G51: =SUM(G45:G50) -> 2965000 | I51: =SUM(I45:I50) -> 3963109.445 | M51: =SUM(M45:M50) -> 3963109.445 | P51: =SUM(P45:P50) -> 998109.4448
C52: =IF('Data Capture Demand'!C69="","",'Data Capture Demand'!C69) -> Commercial Metered (KvA) Type 1 | D52: =IF('Data Capture Demand'!D69="","",'Data Capture Demand'!D69) ->  | E52: ='Data Capture Demand'!E69 -> 0 | F52: ='Data Capture Demand'!H69 -> 0 | G52: =SUM('Data Capture Demand'!G69*F52) -> 0 | H52: ='Revised Primary Baseline Tariff'!$D$15 -> 0 | I52: =SUM(E52*H52) -> 0 | K52: 0 | L52: =SUM(H52*K52%)+H52 -> 0 | M52: =E52*L52 -> 0 | O52: =L52-F52 -> 0 | P52: =M52-G52 -> 0
C53: =IF('Data Capture Demand'!C70="","",'Data Capture Demand'!C70) -> Commercial Metered (KvA) Type 2 | D53: =IF('Data Capture Demand'!D70="","",'Data Capture Demand'!D70) ->  | E53: ='Data Capture Demand'!E70 -> 0 | F53: ='Data Capture Demand'!H70 -> 0 | G53: =SUM('Data Capture Demand'!G70*F53) -> 0 | H53: ='Revised Primary Baseline Tariff'!$D$15 -> 0 | I53: 0 | K53: 0 | L53: 0 | M53: 0 | O53: =L53-F53 -> 0 | P53: =M53-G53 -> 0
C54: =IF('Data Capture Demand'!C71="","",'Data Capture Demand'!C71) -> Commercial Metered (KvA) Type 3 | D54: =IF('Data Capture Demand'!D71="","",'Data Capture Demand'!D71) ->  | E54: ='Data Capture Demand'!E71 -> 0 | F54: ='Data Capture Demand'!H71 -> 0 | G54: =SUM('Data Capture Demand'!G71*F54) -> 0 | H54: ='Revised Primary Baseline Tariff'!$D$15 -> 0 | I54: 0 | K54: 0 | L54: 0 | M54: 0 | O54: =L54-F54 -> 0 | P54: 0
C55: =IF('Data Capture Demand'!C72="","",'Data Capture Demand'!C72) -> Commercial Metered (KvA) Type 4 | D55: =IF('Data Capture Demand'!D72="","",'Data Capture Demand'!D72) ->  | E55: ='Data Capture Demand'!E72 -> 0 | F55: ='Data Capture Demand'!H72 -> 0 | G55: =SUM('Data Capture Demand'!G72*F55) -> 0 | H55: ='Revised Primary Baseline Tariff'!$D$15 -> 0 | I55: 0 | K55: 0 | L55: 0 | M55: 0 | O55: =L55-F55 -> 0 | P55: 0
C56: =IF('Data Capture Demand'!C73="","",'Data Capture Demand'!C73) -> Commercial Metered (KvA) Type 5 | D56: =IF('Data Capture Demand'!D73="","",'Data Capture Demand'!D73) ->  | E56: ='Data Capture Demand'!E73 -> 0 | F56: ='Data Capture Demand'!H73 -> 0 | G56: =SUM('Data Capture Demand'!G73*F56) -> 0 | H56: ='Revised Primary Baseline Tariff'!$D$15 -> 0 | I56: 0 | K56: 0 | L56: 0 | M56: 0 | O56: =L56-F56 -> 0 | P56: 0
C57: =IF('Data Capture Demand'!C74="","",'Data Capture Demand'!C74) -> Commercial Metered (KvA) Type 6 | D57: =IF('Data Capture Demand'!D74="","",'Data Capture Demand'!D74) ->  | E57: ='Data Capture Demand'!E74 -> 0 | F57: ='Data Capture Demand'!H74 -> 0 | G57: =SUM('Data Capture Demand'!G74*F57) -> 0 | H57: ='Revised Primary Baseline Tariff'!$D$15 -> 0 | I57: 0 | K57: 0 | L57: 0 | M57: 0 | O57: =L57-F57 -> 0 | P57: 0
C58: ='Data Capture Demand'!C68&" TOTAL" -> COMMERCIAL - METERED (KvA) TOTAL | E58: =SUM(E52:E57) -> 0 | G58: =SUM(G52:G57) -> 0 | I58: =SUM(I52:I57) -> 0 | M58: =SUM(M52:M57) -> 0 | P58: =SUM(P52:P57) -> 0
C59: =IF('Data Capture Demand'!C78="","",'Data Capture Demand'!C78) -> Institutional Metered (KwH) Type 1 | D59: =IF('Data Capture Demand'!D78="","",'Data Capture Demand'!D78) ->  | E59: ='Data Capture Demand'!E78 -> 380000 | F59: ='Data Capture Demand'!H78 -> 0.6 | G59: =SUM('Data Capture Demand'!G78*F59) -> 240000 | H59: ='Revised Primary Baseline Tariff'!$D$16 -> 0.8019783025 | I59: =SUM(E59*H59) -> 304751.7549 | K59: 0 | L59: =SUM(H59*K59%)+H59 -> 0.8019783025 | M59: =E59*L59 -> 304751.7549 | O59: =L59-F59 -> 0.2019783025 | P59: =M59-G59 -> 64751.75495
C60: =IF('Data Capture Demand'!C79="","",'Data Capture Demand'!C79) -> Institutional Metered (KwH) Type 2 | D60: =IF('Data Capture Demand'!D79="","",'Data Capture Demand'!D79) ->  | E60: ='Data Capture Demand'!E79 -> 420000 | F60: ='Data Capture Demand'!H79 -> 0.6 | G60: =SUM('Data Capture Demand'!G79*F60) -> 240000 | H60: ='Revised Primary Baseline Tariff'!$D$16 -> 0.8019783025 | I60: 336830.887 | K60: 0 | L60: 0.8019783025 | M60: 336830.887 | O60: =L60-F60 -> 0.2019783025 | P60: =M60-G60 -> 96830.88705
C61: =IF('Data Capture Demand'!C80="","",'Data Capture Demand'!C80) -> Institutional Metered (KwH) Type 3 | D61: =IF('Data Capture Demand'!D80="","",'Data Capture Demand'!D80) ->  | E61: ='Data Capture Demand'!E80 -> 0 | F61: ='Data Capture Demand'!H80 -> 0 | G61: =SUM('Data Capture Demand'!G80*F61) -> 0 | H61: ='Revised Primary Baseline Tariff'!$D$16 -> 0.8019783025 | I61: 0 | K61: 0 | L61: 0.8019783025 | M61: 0 | O61: =L61-F61 -> 0.8019783025 | P61: 0
C62: =IF('Data Capture Demand'!C81="","",'Data Capture Demand'!C81) -> Institutional Metered (KwH) Type 4 | D62: =IF('Data Capture Demand'!D81="","",'Data Capture Demand'!D81) ->  | E62: ='Data Capture Demand'!E81 -> 0 | F62: ='Data Capture Demand'!H81 -> 0 | G62: =SUM('Data Capture Demand'!G81*F62) -> 0 | H62: ='Revised Primary Baseline Tariff'!$D$16 -> 0.8019783025 | I62: 0 | K62: 0 | L62: 0.8019783025 | M62: 0 | O62: =L62-F62 -> 0.8019783025 | P62: 0
C63: =IF('Data Capture Demand'!C82="","",'Data Capture Demand'!C82) -> Institutional Metered (KwH) Type 5 | D63: =IF('Data Capture Demand'!D82="","",'Data Capture Demand'!D82) ->  | E63: ='Data Capture Demand'!E82 -> 0 | F63: ='Data Capture Demand'!H82 -> 0 | G63: =SUM('Data Capture Demand'!G82*F63) -> 0 | H63: ='Revised Primary Baseline Tariff'!$D$16 -> 0.8019783025 | I63: 0 | K63: 0 | L63: 0.8019783025 | M63: 0 | O63: =L63-F63 -> 0.8019783025 | P63: 0
C64: =IF('Data Capture Demand'!C83="","",'Data Capture Demand'!C83) -> Institutional Metered (KwH) Type 6 | D64: =IF('Data Capture Demand'!D83="","",'Data Capture Demand'!D83) ->  | E64: ='Data Capture Demand'!E83 -> 0 | F64: ='Data Capture Demand'!H83 -> 0 | G64: =SUM('Data Capture Demand'!G83*F64) -> 0 | H64: ='Revised Primary Baseline Tariff'!$D$16 -> 0.8019783025 | I64: 0 | K64: 0 | L64: 0.8019783025 | M64: 0 | O64: =L64-F64 -> 0.8019783025 | P64: 0
C65: ='Data Capture Demand'!C77&" TOTAL" -> INSTITUTIONAL - METERED (KwH) TOTAL | E65: =SUM(E59:E64) -> 800000 | G65: =SUM(G59:G64) -> 480000 | I65: =SUM(I59:I64) -> 641582.642 | M65: =SUM(M59:M64) -> 641582.642 | P65: =SUM(P59:P64) -> 161582.642
C66: =IF('Data Capture Demand'!C87="","",'Data Capture Demand'!C87) -> Time of Use Type 1 | D66: =IF('Data Capture Demand'!D87="","",'Data Capture Demand'!D87) ->  | E66: ='Data Capture Demand'!E87 -> 0 | F66: ='Data Capture Demand'!H87 -> 0 | G66: =SUM('Data Capture Demand'!G87*F66) -> 0 | H66: ='Revised Primary Baseline Tariff'!$D$17 -> 0 | I66: =SUM(E66*H66) -> 0 | K66: 0 | L66: =SUM(H66*K66%)+H66 -> 0 | M66: =E66*L66 -> 0 | O66: =L66-F66 -> 0 | P66: =M66-G66 -> 0
C67: =IF('Data Capture Demand'!C88="","",'Data Capture Demand'!C88) -> Time of Use Type 2 | D67: =IF('Data Capture Demand'!D88="","",'Data Capture Demand'!D88) ->  | E67: ='Data Capture Demand'!E88 -> 0 | F67: ='Data Capture Demand'!H88 -> 0 | G67: =SUM('Data Capture Demand'!G88*F67) -> 0 | H67: ='Revised Primary Baseline Tariff'!$D$17 -> 0 | I67: 0 | K67: 0 | L67: 0 | M67: 0 | O67: =L67-F67 -> 0 | P67: =M67-G67 -> 0
C68: =IF('Data Capture Demand'!C89="","",'Data Capture Demand'!C89) -> Time of Use Type 3 | D68: =IF('Data Capture Demand'!D89="","",'Data Capture Demand'!D89) ->  | E68: ='Data Capture Demand'!E89 -> 0 | F68: ='Data Capture Demand'!H89 -> 0 | G68: =SUM('Data Capture Demand'!G89*F68) -> 0 | H68: ='Revised Primary Baseline Tariff'!$D$17 -> 0 | I68: 0 | K68: 0 | L68: 0 | M68: 0 | O68: =L68-F68 -> 0 | P68: 0
C69: =IF('Data Capture Demand'!C90="","",'Data Capture Demand'!C90) -> Time of Use Type 4 | D69: =IF('Data Capture Demand'!D90="","",'Data Capture Demand'!D90) ->  | E69: ='Data Capture Demand'!E90 -> 0 | F69: ='Data Capture Demand'!H90 -> 0 | G69: =SUM('Data Capture Demand'!G90*F69) -> 0 | H69: ='Revised Primary Baseline Tariff'!$D$17 -> 0 | I69: 0 | K69: 0 | L69: 0 | M69: 0 | O69: =L69-F69 -> 0 | P69: 0
C70: =IF('Data Capture Demand'!C91="","",'Data Capture Demand'!C91) -> Time of Use Type 5 | D70: =IF('Data Capture Demand'!D91="","",'Data Capture Demand'!D91) ->  | E70: ='Data Capture Demand'!E91 -> 0 | F70: ='Data Capture Demand'!H91 -> 0 | G70: =SUM('Data Capture Demand'!G91*F70) -> 0 | H70: ='Revised Primary Baseline Tariff'!$D$17 -> 0 | I70: 0 | K70: 0 | L70: 0 | M70: 0 | O70: =L70-F70 -> 0 | P70: 0
C71: =IF('Data Capture Demand'!C92="","",'Data Capture Demand'!C92) -> Time of Use Type 6 | D71: =IF('Data Capture Demand'!D92="","",'Data Capture Demand'!D92) ->  | E71: ='Data Capture Demand'!E92 -> 0 | F71: ='Data Capture Demand'!H92 -> 0 | G71: =SUM('Data Capture Demand'!G92*F71) -> 0 | H71: ='Revised Primary Baseline Tariff'!$D$17 -> 0 | I71: 0 | K71: 0 | L71: 0 | M71: 0 | O71: =L71-F71 -> 0 | P71: 0
C72: ='Data Capture Demand'!C86&" TOTAL" -> TIME OF USE TOTAL | E72: =SUM(E66:E71) -> 0 | G72: =SUM(G66:G71) -> 0 | I72: =SUM(I66:I71) -> 0 | M72: =SUM(M66:M71) -> 0 | P72: =SUM(P66:P71) -> 0
C73: =IF('Data Capture Demand'!C96="","",'Data Capture Demand'!C96) -> Type V Type 1 | D73: =IF('Data Capture Demand'!D96="","",'Data Capture Demand'!D96) ->  | E73: ='Data Capture Demand'!E96 -> 0 | F73: ='Data Capture Demand'!H96 -> 0 | G73: =SUM('Data Capture Demand'!G96*F73) -> 0 | H73: ='Revised Primary Baseline Tariff'!$D$18 -> 0 | I73: =SUM(E73*H73) -> 0 | K73: 0 | L73: =SUM(H73*K73%)+H73 -> 0 | M73: =E73*L73 -> 0 | O73: =L73-F73 -> 0 | P73: =M73-G73 -> 0
C74: =IF('Data Capture Demand'!C97="","",'Data Capture Demand'!C97) -> Type V Type 2 | D74: =IF('Data Capture Demand'!D97="","",'Data Capture Demand'!D97) ->  | E74: ='Data Capture Demand'!E97 -> 0 | F74: ='Data Capture Demand'!H97 -> 0 | G74: =SUM('Data Capture Demand'!G97*F74) -> 0 | H74: ='Revised Primary Baseline Tariff'!$D$18 -> 0 | I74: 0 | K74: 0 | L74: 0 | M74: 0 | O74: =L74-F74 -> 0 | P74: =M74-G74 -> 0
C75: =IF('Data Capture Demand'!C98="","",'Data Capture Demand'!C98) -> Type V Type 3 | D75: =IF('Data Capture Demand'!D98="","",'Data Capture Demand'!D98) ->  | E75: ='Data Capture Demand'!E98 -> 0 | F75: ='Data Capture Demand'!H98 -> 0 | G75: =SUM('Data Capture Demand'!G98*F75) -> 0 | H75: ='Revised Primary Baseline Tariff'!$D$18 -> 0 | I75: 0 | K75: 0 | L75: 0 | M75: 0 | O75: =L75-F75 -> 0 | P75: 0
C76: =IF('Data Capture Demand'!C99="","",'Data Capture Demand'!C99) -> Type V Type 4 | D76: =IF('Data Capture Demand'!D99="","",'Data Capture Demand'!D99) ->  | E76: ='Data Capture Demand'!E99 -> 0 | F76: ='Data Capture Demand'!H99 -> 0 | G76: =SUM('Data Capture Demand'!G99*F76) -> 0 | H76: ='Revised Primary Baseline Tariff'!$D$18 -> 0 | I76: 0 | K76: 0 | L76: 0 | M76: 0 | O76: =L76-F76 -> 0 | P76: 0
C77: =IF('Data Capture Demand'!C100="","",'Data Capture Demand'!C100) -> Type V Type 5 | D77: =IF('Data Capture Demand'!D100="","",'Data Capture Demand'!D100) ->  | E77: ='Data Capture Demand'!E100 -> 0 | F77: ='Data Capture Demand'!H100 -> 0 | G77: =SUM('Data Capture Demand'!G100*F77) -> 0 | H77: ='Revised Primary Baseline Tariff'!$D$18 -> 0 | I77: 0 | K77: 0 | L77: 0 | M77: 0 | O77: =L77-F77 -> 0 | P77: 0
C78: =IF('Data Capture Demand'!C101="","",'Data Capture Demand'!C101) -> Type V Type 6 | D78: =IF('Data Capture Demand'!D101="","",'Data Capture Demand'!D101) ->  | E78: ='Data Capture Demand'!E101 -> 0 | F78: ='Data Capture Demand'!H101 -> 0 | G78: =SUM('Data Capture Demand'!G101*F78) -> 0 | H78: ='Revised Primary Baseline Tariff'!$D$18 -> 0 | I78: 0 | K78: 0 | L78: 0 | M78: 0 | O78: =L78-F78 -> 0 | P78: 0
C79: ='Data Capture Demand'!C95&" TOTAL" -> TYPE V TOTAL | E79: =SUM(E73:E78) -> 0 | G79: =SUM(G73:G78) -> 0 | I79: =SUM(I73:I78) -> 0 | M79: =SUM(M73:M78) -> 0 | P79: =SUM(P73:P78) -> 0
C80: =IF('Data Capture Demand'!C105="","",'Data Capture Demand'!C105) -> Type X Type 1 | D80: =IF('Data Capture Demand'!D105="","",'Data Capture Demand'!D85) ->  | E80: ='Data Capture Demand'!E105 -> 0 | F80: ='Data Capture Demand'!H105 -> 0 | G80: =SUM('Data Capture Demand'!G105*F80) -> 0 | H80: ='Revised Primary Baseline Tariff'!$D$19 -> 0 | I80: =SUM(E80*H80) -> 0 | K80: 0 | L80: =SUM(H80*K80%)+H80 -> 0 | M80: =E80*L80 -> 0 | O80: =L80-F80 -> 0 | P80: =M80-G80 -> 0
C81: =IF('Data Capture Demand'!C106="","",'Data Capture Demand'!C106) -> Type X Type 2 | D81: =IF('Data Capture Demand'!D106="","",'Data Capture Demand'!D86) ->  | E81: ='Data Capture Demand'!E106 -> 0 | F81: ='Data Capture Demand'!H106 -> 0 | G81: =SUM('Data Capture Demand'!G106*F81) -> 0 | H81: ='Revised Primary Baseline Tariff'!$D$19 -> 0 | I81: 0 | K81: 0 | L81: 0 | M81: 0 | O81: =L81-F81 -> 0 | P81: =M81-G81 -> 0
C82: =IF('Data Capture Demand'!C107="","",'Data Capture Demand'!C107) -> Type X Type 3 | D82: =IF('Data Capture Demand'!D107="","",'Data Capture Demand'!D87) ->  | E82: ='Data Capture Demand'!E107 -> 0 | F82: ='Data Capture Demand'!H107 -> 0 | G82: =SUM('Data Capture Demand'!G107*F82) -> 0 | H82: ='Revised Primary Baseline Tariff'!$D$19 -> 0 | I82: 0 | K82: 0 | L82: 0 | M82: 0 | O82: =L82-F82 -> 0 | P82: 0
C83: =IF('Data Capture Demand'!C108="","",'Data Capture Demand'!C108) -> Type X Type 4 | D83: =IF('Data Capture Demand'!D108="","",'Data Capture Demand'!D88) ->  | E83: ='Data Capture Demand'!E108 -> 0 | F83: ='Data Capture Demand'!H108 -> 0 | G83: =SUM('Data Capture Demand'!G108*F83) -> 0 | H83: ='Revised Primary Baseline Tariff'!$D$19 -> 0 | I83: 0 | K83: 0 | L83: 0 | M83: 0 | O83: =L83-F83 -> 0 | P83: 0
C84: =IF('Data Capture Demand'!C109="","",'Data Capture Demand'!C109) -> Type X Type 5 | D84: =IF('Data Capture Demand'!D109="","",'Data Capture Demand'!D89) ->  | E84: ='Data Capture Demand'!E109 -> 0 | F84: ='Data Capture Demand'!H109 -> 0 | G84: =SUM('Data Capture Demand'!G109*F84) -> 0 | H84: ='Revised Primary Baseline Tariff'!$D$19 -> 0 | I84: 0 | K84: 0 | L84: 0 | M84: 0 | O84: =L84-F84 -> 0 | P84: 0
C85: =IF('Data Capture Demand'!C110="","",'Data Capture Demand'!C110) -> Type X Type 6 | D85: =IF('Data Capture Demand'!D110="","",'Data Capture Demand'!D90) ->  | E85: ='Data Capture Demand'!E110 -> 0 | F85: ='Data Capture Demand'!H110 -> 0 | G85: =SUM('Data Capture Demand'!G110*F85) -> 0 | H85: ='Revised Primary Baseline Tariff'!$D$19 -> 0 | I85: 0 | K85: 0 | L85: 0 | M85: 0 | O85: =L85-F85 -> 0 | P85: 0
C86: ='Data Capture Demand'!C104&" TOTAL" -> TYPE X TOTAL | E86: =SUM(E80:E85) -> 0 | G86: =SUM(G80:G85) -> 0 | I86: =SUM(I80:I85) -> 0 | M86: =SUM(M80:M85) -> 0 | P86: =SUM(P80:P85) -> 0
C87: =IF('Data Capture Demand'!C114="","",'Data Capture Demand'!C114) -> Type Y Type 1 | D87: =IF('Data Capture Demand'!D114="","",'Data Capture Demand'!D114) ->  | E87: ='Data Capture Demand'!E114 -> 0 | F87: ='Data Capture Demand'!H114 -> 0 | G87: =SUM('Data Capture Demand'!G114*F87) -> 0 | H87: ='Revised Primary Baseline Tariff'!$D$20 -> 0 | I87: =SUM(E87*H87) -> 0 | K87: 0 | L87: =SUM(H87*K87%)+H87 -> 0 | M87: =E87*L87 -> 0 | O87: =L87-F87 -> 0 | P87: =M87-G87 -> 0
C88: =IF('Data Capture Demand'!C115="","",'Data Capture Demand'!C115) -> Type Y Type 2 | D88: =IF('Data Capture Demand'!D115="","",'Data Capture Demand'!D115) ->  | E88: ='Data Capture Demand'!E115 -> 0 | F88: ='Data Capture Demand'!H115 -> 0 | G88: =SUM('Data Capture Demand'!G115*F88) -> 0 | H88: ='Revised Primary Baseline Tariff'!$D$20 -> 0 | I88: 0 | K88: 0 | L88: 0 | M88: 0 | O88: =L88-F88 -> 0 | P88: =M88-G88 -> 0
C89: =IF('Data Capture Demand'!C116="","",'Data Capture Demand'!C116) -> Type Y Type 3 | D89: =IF('Data Capture Demand'!D116="","",'Data Capture Demand'!D116) ->  | E89: ='Data Capture Demand'!E116 -> 0 | F89: ='Data Capture Demand'!H116 -> 0 | G89: =SUM('Data Capture Demand'!G116*F89) -> 0 | H89: ='Revised Primary Baseline Tariff'!$D$20 -> 0 | I89: 0 | K89: 0 | L89: 0 | M89: 0 | O89: =L89-F89 -> 0 | P89: 0
C90: =IF('Data Capture Demand'!C117="","",'Data Capture Demand'!C117) -> Type Y Type 4 | D90: =IF('Data Capture Demand'!D117="","",'Data Capture Demand'!D117) ->  | E90: ='Data Capture Demand'!E117 -> 0 | F90: ='Data Capture Demand'!H117 -> 0 | G90: =SUM('Data Capture Demand'!G117*F90) -> 0 | H90: ='Revised Primary Baseline Tariff'!$D$20 -> 0 | I90: 0 | K90: 0 | L90: 0 | M90: 0 | O90: =L90-F90 -> 0 | P90: 0
C91: =IF('Data Capture Demand'!C118="","",'Data Capture Demand'!C118) -> Type Y Type 5 | D91: =IF('Data Capture Demand'!D118="","",'Data Capture Demand'!D118) ->  | E91: ='Data Capture Demand'!E118 -> 0 | F91: ='Data Capture Demand'!H118 -> 0 | G91: =SUM('Data Capture Demand'!G118*F91) -> 0 | H91: ='Revised Primary Baseline Tariff'!$D$20 -> 0 | I91: 0 | K91: 0 | L91: 0 | M91: 0 | O91: =L91-F91 -> 0 | P91: 0
C92: =IF('Data Capture Demand'!C119="","",'Data Capture Demand'!C119) -> Type Y Type 6 | D92: =IF('Data Capture Demand'!D119="","",'Data Capture Demand'!D119) ->  | E92: ='Data Capture Demand'!E119 -> 0 | F92: ='Data Capture Demand'!H119 -> 0 | G92: =SUM('Data Capture Demand'!G119*F92) -> 0 | H92: ='Revised Primary Baseline Tariff'!$D$20 -> 0 | I92: 0 | K92: 0 | L92: 0 | M92: 0 | O92: =L92-F92 -> 0 | P92: 0
C93: ='Data Capture Demand'!C113&" TOTAL" -> TYPE Y TOTAL | E93: =SUM(E87:E92) -> 0 | G93: =SUM(G87:G92) -> 0 | I93: =SUM(I87:I92) -> 0 | M93: =SUM(M87:M92) -> 0 | P93: =SUM(P87:P92) -> 0
C94: =IF('Data Capture Demand'!C123="","",'Data Capture Demand'!C123) -> Type Z Type 1 | D94: =IF('Data Capture Demand'!D123="","",'Data Capture Demand'!D123) ->  | E94: ='Data Capture Demand'!E123 -> 0 | F94: ='Data Capture Demand'!H123 -> 0 | G94: =SUM('Data Capture Demand'!G123*F94) -> 0 | H94: ='Revised Primary Baseline Tariff'!$D$21 -> 0 | I94: =SUM(E94*H94) -> 0 | K94: 0 | L94: =SUM(H94*K94%)+H94 -> 0 | M94: =E94*L94 -> 0 | O94: =L94-F94 -> 0 | P94: =M94-G94 -> 0
C95: =IF('Data Capture Demand'!C124="","",'Data Capture Demand'!C124) -> Type Z Type 2 | D95: =IF('Data Capture Demand'!D124="","",'Data Capture Demand'!D124) ->  | E95: ='Data Capture Demand'!E124 -> 0 | F95: ='Data Capture Demand'!H124 -> 0 | G95: =SUM('Data Capture Demand'!G124*F95) -> 0 | H95: ='Revised Primary Baseline Tariff'!$D$21 -> 0 | I95: 0 | K95: 0 | L95: 0 | M95: 0 | O95: =L95-F95 -> 0 | P95: =M95-G95 -> 0
C96: =IF('Data Capture Demand'!C125="","",'Data Capture Demand'!C125) -> Type Z Type 3 | D96: =IF('Data Capture Demand'!D125="","",'Data Capture Demand'!D125) ->  | E96: ='Data Capture Demand'!E125 -> 0 | F96: ='Data Capture Demand'!H125 -> 0 | G96: =SUM('Data Capture Demand'!G125*F96) -> 0 | H96: ='Revised Primary Baseline Tariff'!$D$21 -> 0 | I96: 0 | K96: 0 | L96: 0 | M96: 0 | O96: =L96-F96 -> 0 | P96: 0
C97: =IF('Data Capture Demand'!C126="","",'Data Capture Demand'!C126) -> Type Z Type 4 | D97: =IF('Data Capture Demand'!D126="","",'Data Capture Demand'!D126) ->  | E97: ='Data Capture Demand'!E126 -> 0 | F97: ='Data Capture Demand'!H126 -> 0 | G97: =SUM('Data Capture Demand'!G126*F97) -> 0 | H97: ='Revised Primary Baseline Tariff'!$D$21 -> 0 | I97: 0 | K97: 0 | L97: 0 | M97: 0 | O97: =L97-F97 -> 0 | P97: 0
C98: =IF('Data Capture Demand'!C127="","",'Data Capture Demand'!C127) -> Type Z Type 5 | D98: =IF('Data Capture Demand'!D127="","",'Data Capture Demand'!D127) ->  | E98: ='Data Capture Demand'!E127 -> 0 | F98: ='Data Capture Demand'!H127 -> 0 | G98: =SUM('Data Capture Demand'!G127*F98) -> 0 | H98: ='Revised Primary Baseline Tariff'!$D$21 -> 0 | I98: 0 | K98: 0 | L98: 0 | M98: 0 | O98: =L98-F98 -> 0 | P98: 0
C99: =IF('Data Capture Demand'!C128="","",'Data Capture Demand'!C128) -> Type Z Type 6 | D99: =IF('Data Capture Demand'!D128="","",'Data Capture Demand'!D128) ->  | E99: ='Data Capture Demand'!E128 -> 0 | F99: ='Data Capture Demand'!H128 -> 0 | G99: =SUM('Data Capture Demand'!G128*F99) -> 0 | H99: ='Revised Primary Baseline Tariff'!$D$21 -> 0 | I99: 0 | K99: 0 | L99: 0 | M99: 0 | O99: =L99-F99 -> 0 | P99: 0
C100: ='Data Capture Demand'!C122&" TOTAL" -> TYPE Z TOTAL | E100: =SUM(E94:E99) -> 0 | G100: =SUM(G94:G99) -> 0 | I100: =SUM(I94:I99) -> 0 | M100: =SUM(M94:M99) -> 0 | P100: =SUM(P94:P99) -> 0
C102: TOTAL VARIABLE CONSUMPTION | E102: =SUM(E16+E23+E30+E37+E44+E51+E58+E65+E72+E79+E86+E93+E100) -> 19100000 | G102: =SUM(G16+G23+G30+G37+G44+G51+G58+G65+G72+G79+G86+G93+G100) -> 15670000 | I102: =SUM(I16+I23+I30+I37+I44+I51+I58+I65+I72+I79+I86+I93+I100) -> 20945000 | M102: =SUM(M16+M23+M30+M37+M44+M51+M58+M65+M72+M79+M86+M93+M100) -> 20945000 | P102: =SUM(P16+P23+P30+P37+P44+P51+P58+P65+P72+P79+P86+P93+P100) -> 5275000
C104: FULL VARIABLE COST | E104: =SUM('Data Capture Costs'!D6) -> 20945000 | F104: CURRENT ACTUAL (PER YEAR) | L104: ANTICIPATED (PER YEAR)
F105: Current Revenue | G105: =G102 -> 15670000 | L105: Revised Revenue | M105: =M102 -> 20945000
F106: PROFIT\LOSS | G106: =G105-E104 -> -5275000 | L106: PROFIT\LOSS | M106: =M105-E104 -> 0

Sheet Test Afford of Fixed Tariff
C3: CURRENT & REVISED TARIFF COMPARISON - FIXED FACILITY PER YEAR
C5: ='Data Capture Demand'!C8 -> CONSUMER | D5: ='Data Capture Demand'!D8 -> CONSUMPTION LEVEL | E5: ='Data Capture Demand'!E8&" ("&Menu!J4&")" -> UNITS OF DEMAND (SA RANDS) | F5: CURRENT ACTUAL | H5: REVISED TARIFF | K5: AFFORDABILITY ADJUSTMENT TO REVISED PRIMARY BASELINE | O5: Current Actual - Revised | P5: PROFIT\LOSS
F6: TARIFF | G6: REVENUE | H6: TARIFF | I6: REVENUE | K6: % CHANGE | L6: TARIFF | M6: REVENUE | O6: TARIFF | P6: REVENUE
C7: =IF('Data Capture Users'!C10="","",'Data Capture Users'!C10) -> Domestic Low Income Pre-paid | E7: ='Data Capture Users'!D10 -> 2200 | F7: ='Data Capture Users'!G10 -> 0 | G7: ='Data Capture Users'!F10*F7 -> 0 | H7: 0 | I7: =SUM(E7*H7) -> 0 | K7: 0 | L7: =SUM(H7*K7%)+H7 -> 0 | M7: =E7*L7 -> 0 | O7: =L7-F7 -> 0 | P7: =M7-G7 -> 0
C8: =IF('Data Capture Users'!C11="","",'Data Capture Users'!C11) -> Domestic Low Income Metered | E8: ='Data Capture Users'!D11 -> 0 | F8: ='Data Capture Users'!G11 -> 600 | G8: ='Data Capture Users'!F11*F8 -> 0 | H8: 0 | I8: =SUM(E8*H8) -> 0 | K8: 0 | L8: =SUM(H8*K8%)+H8 -> 0 | M8: =E8*L8 -> 0 | O8: =L8-F8 -> -600 | P8: =M8-G8 -> 0
C9: ='Data Capture Users'!C9&" TOTAL" -> DOMESTIC - LOW INCOME (KwH) TOTAL | E9: =SUM(E7:E8) -> 2200 | G9: =SUM(G7:G8) -> 0 | I9: =SUM(I7:I8) -> 0 | M9: =SUM(M7:M8) -> 0 | P9: =SUM(P7:P8) -> 0
C10: =IF('Data Capture Users'!C15="","",'Data Capture Users'!C15) -> Availablility Fees for Vacant Stands | E10: ='Data Capture Users'!D15 -> 0 | F10: ='Data Capture Users'!G15 -> 0 | G10: ='Data Capture Users'!F15*F10 -> 0 | H10: ='Revised Primary Baseline Tariff'!$D$26 -> 736.8181818 | I10: =SUM(E10*H10) -> 0 | K10: 0 | L10: =SUM(H10*K10%)+H10 -> 736.8181818 | M10: =E10*L10 -> 0 | O10: =L10-F10 -> 736.8181818 | P10: 0
C11: =IF('Data Capture Users'!C16="","",'Data Capture Users'!C16) -> Basic Fees for Occupied Stands | E11: ='Data Capture Users'!D16 -> 0 | F11: ='Data Capture Users'!G16 -> 0 | G11: ='Data Capture Users'!F16*F11 -> 0 | H11: ='Revised Primary Baseline Tariff'!$D$26 -> 736.8181818 | I11: =SUM(E11*H11) -> 0 | K11: 0 | L11: =SUM(H11*K11%)+H11 -> 736.8181818 | M11: =E11*L11 -> 0 | O11: =L11-F11 -> 736.8181818 | P11: 0
C12: =IF('Data Capture Users'!C17="","",'Data Capture Users'!C17) ->  | E12: ='Data Capture Users'!D17 -> 0 | F12: ='Data Capture Users'!G17 -> 0 | G12: ='Data Capture Users'!F17*F12 -> 0 | H12: ='Revised Primary Baseline Tariff'!$D$26 -> 736.8181818 | I12: =SUM(E12*H12) -> 0 | K12: 0 | L12: =SUM(H12*K12%)+H12 -> 736.8181818 | M12: =E12*L12 -> 0 | O12: =L12-F12 -> 736.8181818 | P12: 0
C13: ='Data Capture Users'!C14&" TOTAL" -> DOMESTIC - PRE-PAID (KwH) TOTAL | E13: =SUM(E10:E12) -> 0 | G13: =SUM(G10:G12) -> 0 | I13: =SUM(I10:I12) -> 0 | M13: =SUM(M10:M12) -> 0 | P13: =SUM(P10:P12) -> 0
C14: =IF('Data Capture Users'!C21="","",'Data Capture Users'!C21) -> Availablility Fees for Vacant Stands | E14: ='Data Capture Users'!D21 -> 900 | F14: ='Data Capture Users'!G21 -> 600 | G14: ='Data Capture Users'!F21*F14 -> 600000 | H14: ='Revised Primary Baseline Tariff'!$D$26 -> 736.8181818 | I14: =SUM(E14*H14) -> 663136.3636 | K14: 0 | L14: =SUM(H14*K14%)+H14 -> 736.8181818 | M14: =E14*L14 -> 663136.3636 | O14: =L14-F14 -> 136.8181818 | P14: =M14-G14 -> 63136.36364
C15: =IF('Data Capture Users'!C22="","",'Data Capture Users'!C22) -> Basic Fees for Occupied Stands | E15: ='Data Capture Users'!D22 -> 10100 | F15: ='Data Capture Users'!G22 -> 600 | G15: ='Data Capture Users'!F22*F15 -> 6000000 | H15: ='Revised Primary Baseline Tariff'!$D$26 -> 736.8181818 | I15: =SUM(E15*H15) -> 7441863.636 | K15: 0 | L15: =SUM(H15*K15%)+H15 -> 736.8181818 | M15: =E15*L15 -> 7441863.636 | O15: =L15-F15 -> 136.8181818 | P15: 1441863.636
C16: =IF('Data Capture Users'!C23="","",'Data Capture Users'!C23) ->  | E16: ='Data Capture Users'!D23 -> 0 | F16: ='Data Capture Users'!G23 -> 0 | G16: ='Data Capture Users'!F23*F16 -> 0 | H16: ='Revised Primary Baseline Tariff'!$D$26 -> 736.8181818 | I16: =SUM(E16*H16) -> 0 | K16: 0 | L16: =SUM(H16*K16%)+H16 -> 736.8181818 | M16: =E16*L16 -> 0 | O16: =L16-F16 -> 736.8181818 | P16: 0
C17: ='Data Capture Users'!C20&" TOTAL" -> DOMESTIC - METERED SINGLE & THREE PHASE (KwH) TOTAL | E17: =SUM(E14:E16) -> 11000 | G17: =SUM(G14:G16) -> 6600000 | I17: =SUM(I14:I16) -> 8105000 | M17: =SUM(M14:M16) -> 8105000 | P17: =SUM(P14:P16) -> 1505000
C18: =IF('Data Capture Users'!C27="","",'Data Capture Users'!C27) -> Availablility Fees for Vacant Stands | E18: ='Data Capture Users'!D27 -> 0 | F18: ='Data Capture Users'!G27 -> 0 | G18: ='Data Capture Users'!F27*F18 -> 0 | H18: ='Revised Primary Baseline Tariff'!$D$26 -> 736.8181818 | I18: =SUM(E18*H18) -> 0 | K18: 0 | L18: =SUM(H18*K18%)+H18 -> 736.8181818 | M18: =E18*L18 -> 0 | O18: =L18-F18 -> 736.8181818 | P18: =M18-G18 -> 0
C19: =IF('Data Capture Users'!C28="","",'Data Capture Users'!C28) -> Basic Fees for Occupied Stands | E19: ='Data Capture Users'!D28 -> 0 | F19: ='Data Capture Users'!G28 -> 0 | G19: ='Data Capture Users'!F28*F19 -> 0 | H19: ='Revised Primary Baseline Tariff'!$D$26 -> 736.8181818 | I19: =SUM(E19*H19) -> 0 | K19: 0 | L19: =SUM(H19*K19%)+H19 -> 736.8181818 | M19: =E19*L19 -> 0 | O19: =L19-F19 -> 736.8181818 | P19: 0
C20: =IF('Data Capture Users'!C29="","",'Data Capture Users'!C29) ->  | E20: ='Data Capture Users'!D29 -> 0 | F20: ='Data Capture Users'!G29 -> 0 | G20: ='Data Capture Users'!F29*F20 -> 0 | H20: ='Revised Primary Baseline Tariff'!$D$26 -> 736.8181818 | I20: =SUM(E20*H20) -> 0 | K20: 0 | L20: =SUM(H20*K20%)+H20 -> 736.8181818 | M20: =E20*L20 -> 0 | O20: =L20-F20 -> 736.8181818 | P20: 0
C21: ='Data Capture Users'!C26&" TOTAL" -> INDUSTRIAL TOTAL | E21: =SUM(E18:E20) -> 0 | G21: =SUM(G18:G20) -> 0 | I21: =SUM(I18:I20) -> 0 | M21: =SUM(M18:M20) -> 0 | P21: =SUM(P18:P20) -> 0
C22: =IF('Data Capture Users'!C33="","",'Data Capture Users'!C33) -> Availablility Fees for Vacant Stands | E22: ='Data Capture Users'!D33 -> 0 | F22: ='Data Capture Users'!G33 -> 0 | G22: ='Data Capture Users'!F33*F22 -> 0 | H22: ='Revised Primary Baseline Tariff'!$D$26 -> 736.8181818 | I22: =SUM(E22*H22) -> 0 | K22: 0 | L22: =SUM(H22*K22%)+H22 -> 736.8181818 | M22: =E22*L22 -> 0 | O22: =L22-F22 -> 736.8181818 | P22: =M22-G22 -> 0
C23: =IF('Data Capture Users'!C34="","",'Data Capture Users'!C34) -> Basic Fees for Occupied Stands | E23: ='Data Capture Users'!D34 -> 0 | F23: ='Data Capture Users'!G34 -> 0 | G23: ='Data Capture Users'!F34*F23 -> 0 | H23: ='Revised Primary Baseline Tariff'!$D$26 -> 736.8181818 | I23: =SUM(E23*H23) -> 0 | K23: 0 | L23: =SUM(H23*K23%)+H23 -> 736.8181818 | M23: =E23*L23 -> 0 | O23: =L23-F23 -> 736.8181818 | P23: 0
C24: =IF('Data Capture Users'!C35="","",'Data Capture Users'!C35) ->  | E24: ='Data Capture Users'!D35 -> 0 | F24: ='Data Capture Users'!G35 -> 0 | G24: ='Data Capture Users'!F35*F24 -> 0 | H24: ='Revised Primary Baseline Tariff'!$D$26 -> 736.8181818 | I24: =SUM(E24*H24) -> 0 | K24: 0 | L24: =SUM(H24*K24%)+H24 -> 736.8181818 | M24: =E24*L24 -> 0 | O24: =L24-F24 -> 736.8181818 | P24: 0
C25: ='Data Capture Users'!C32&" TOTAL" -> COMMERCIAL TOTAL | E25: =SUM(E22:E24) -> 0 | G25: =SUM(G22:G24) -> 0 | I25: =SUM(I22:I24) -> 0 | M25: =SUM(M22:M24) -> 0 | P25: =SUM(P22:P24) -> 0
C26: =IF('Data Capture Users'!C39="","",'Data Capture Users'!C39) -> Availablility Fees for Vacant Stands | E26: ='Data Capture Users'!D39 -> 0 | F26: ='Data Capture Users'!G39 -> 0 | G26: ='Data Capture Users'!F39*F26 -> 0 | H26: ='Revised Primary Baseline Tariff'!$D$26 -> 736.8181818 | I26: =SUM(E26*H26) -> 0 | K26: 0 | L26: =SUM(H26*K26%)+H26 -> 736.8181818 | M26: =E26*L26 -> 0 | O26: =L26-F26 -> 736.8181818 | P26: =M26-G26 -> 0
C27: =IF('Data Capture Users'!C40="","",'Data Capture Users'!C40) -> Basic Fees for Occupied Stands | E27: ='Data Capture Users'!D40 -> 0 | F27: ='Data Capture Users'!G40 -> 0 | G27: ='Data Capture Users'!F40*F27 -> 0 | H27: ='Revised Primary Baseline Tariff'!$D$26 -> 736.8181818 | I27: =SUM(E27*H27) -> 0 | K27: 0 | L27: =SUM(H27*K27%)+H27 -> 736.8181818 | M27: =E27*L27 -> 0 | O27: =L27-F27 -> 736.8181818 | P27: 0
C28: =IF('Data Capture Users'!C41="","",'Data Capture Users'!C41) ->  | E28: ='Data Capture Users'!D41 -> 0 | F28: ='Data Capture Users'!G41 -> 0 | G28: ='Data Capture Users'!F41*F28 -> 0 | H28: ='Revised Primary Baseline Tariff'!$D$26 -> 736.8181818 | I28: =SUM(E28*H28) -> 0 | K28: 0 | L28: =SUM(H28*K28%)+H28 -> 736.8181818 | M28: =E28*L28 -> 0 | O28: =L28-F28 -> 736.8181818 | P28: 0
C29: ='Data Capture Users'!C38&" TOTAL" -> INSTITUTIONAL TOTAL | E29: =SUM(E26:E28) -> 0 | G29: =SUM(G26:G28) -> 0 | I29: =SUM(I26:I28) -> 0 | M29: =SUM(M26:M28) -> 0 | P29: =SUM(P26:P28) -> 0
C31: TOTAL FIXED CONSUMPTION | E31: =SUM(E13+E17+E21+E25+E29) -> 11000 | G31: =SUM(G13+G17+G21+G25+G29) -> 6600000 | I31: =SUM(I13+I17+I21+I25+I29) -> 8105000 | M31: =SUM(M13+M17+M21+M25+M29) -> 8105000 | P31: =SUM(P13+P17+P21+P25+P29) -> 1505000
C33: FULL FIXED COST | D33: =SUM('Data Capture Costs'!D7) -> 8105000 | E33: =SUM('Data Capture Costs'!D7) -> 8105000 | G33: CURRENT ACTUAL (PER YEAR) | L33: ANTICIPATED (PER YEAR)
G34: Current Revenue | H34: =G31 -> 6600000 | L34: Revised Revenue | M34: =M31 -> 8105000
G35: PROFIT\LOSS | H35: =H34-E33 -> -1505000 | L35: PROFIT\LOSS | M35: =M34-E33 -> 0

Sheet Summary of Tariff Comparison
C3: SUMMARY: VARIABLE & FIXED PROFIT AND LOSS PER YEAR
C5: ='Data Capture Demand'!C8 -> CONSUMER | D5: ='Data Capture Demand'!D8 -> CONSUMPTION LEVEL | E5: ='Data Capture Demand'!E8&" ("&Menu!J4&")" -> UNITS OF DEMAND (SA RANDS) | F5: CURRENT ACTUAL | H5: REVISED TARIFF | K5: AFFORDABILITY ADJUSTMENT TO REVISED PRIMARY BASELINE | O5: Current Actual - Revised | P5: PROFIT\LOSS
F6: TARIFF | G6: REVENUE | H6: TARIFF | I6: REVENUE | K6: % CHANGE | L6: TARIFF | M6: REVENUE | O6: TARIFF | P6: REVENUE
C8: TOTAL VARIABLE CONSUMPTION | E8: ='Test Afford of Variable Tariff'!E102 -> 19100000 | G8: ='Test Afford of Variable Tariff'!G102 -> 15670000 | I8: ='Test Afford of Variable Tariff'!I102 -> 20945000 | M8: ='Test Afford of Variable Tariff'!M102 -> 20945000 | P8: ='Test Afford of Variable Tariff'!P102 -> 5275000
C10: TOTAL FIXED CONSUMPTION | E10: ='Test Afford of Fixed Tariff'!E31 -> 11000 | G10: ='Test Afford of Fixed Tariff'!G31 -> 6600000 | I10: ='Test Afford of Fixed Tariff'!I31 -> 8105000 | M10: ='Test Afford of Fixed Tariff'!M31 -> 8105000 | P10: ='Test Afford of Fixed Tariff'!P31 -> 1505000
C12: FULL COST | E12: =SUM('Data Capture Costs'!D8) -> 29050000 | F12: CURRENT ACTUAL (PER YEAR) | L12: ANTICIPATED (PER YEAR)
F13: Current Revenue | G13: =G8+G10 -> 22270000 | L13: Revised Revenue | M13: =M8+M10 -> 29050000
F14: PROFIT\LOSS | G14: =G13-E12 -> -6780000 | L14: PROFIT\LOSS | M14: =M13-E12 -> 0
